Workbook

Sheet 7-11 город
A2: Примерное меню для организации питания детей возрасте от 7 до 11 лет в образовательных учреждениях Мензелинского района РТ на 2 полугодие 2021-2022 учебный год.
A4: 1 день, 1 неделя
A6: № рецептуры | B6: Прием пищи, наименование блюда | C6: Масса | D6: Пищевые вещества | G6: Энергетическая ценность | H6: Витамины | M6: Минеральные вещества
D7: Белки | E7: Жиры | F7: Углеводы | H7: B1 | I7: B2 | J7: A | K7: D | L7: C | M7: Na | N7: K | O7: Ca | P7: Mg | Q7: P | R7: Fe | S7: I | T7: Se | U7: F
C8: г | D8: г | E8: г | F8: г | G8: ккал | H8: мг | I8: мг | J8: мкг рет.экв | K8: мкг | L8: мг | M8: мг | N8: мг | O8: мг | P8: мг | Q8: мг | R8: мг | S8: мкг | T8: мкг | U8: мкг
B9: Понедельник, 1 неделя
B10: Горячий завтрак | C10: 7-11
A11: 54-11з-2020 | B11: Салат из моркови с яблоками с растительным маслом | C11: 60 | D11: 0.5 | E11: 6.1 | F11: 4.3 | G11: 74.3 | H11: 0.03 | I11: 0.03 | J11: 732.9 | K11: 0 | L11: 3.63 | M11: 89.79 | N11: 123.26 | O11: 13.5 | P11: 15.57 | Q11: 22.38 | R11: 0.66 | S11: 10.19 | T11: 0.09 | U11: 21.57
A12: 54-4г-2020 | B12: Каша гречневая рассыпчатая | C12: 150 | D12: 8.2 | E12: 6.3 | F12: 35.9 | G12: 233.7 | H12: 0.21 | I12: 0.12 | J12: 19.19 | K12: 0.09 | L12: 0 | M12: 149.45 | N12: 219.36 | O12: 46.62 | P12: 120.16 | Q12: 180.99 | R12: 4.05 | S12: 22.28 | T12: 3.52 | U12: 16.06
A13: ном.рец №174 | B13: Тефтели мясные из говядины, полуфабрикат в соусе | C13: 80/30 | D13: 10.81 | E13: 10.4 | F13: 8.42 | G13: 168.9 | H13: 0 | I13: 0 | J13: 38.45 | K13: 0.01 | L13: 1.79 | M13: 3 | N13: 43 | O13: 45.75 | P13: 35.13 | Q13: 109 | R13: 1.6 | S13: 0 | T13: 0 | U13: 0
A14: 54-4гн-2020 | B14: Чай с молоком и сахаром | C14: 200 | D14: 1.6 | E14: 1.1 | F14: 8.6 | G14: 50.9 | H14: 0.01 | I14: 0.07 | J14: 6.9 | K14: 0 | L14: 0.3 | M14: 19.68 | N14: 81.35 | O14: 103.48 | P14: 9.92 | Q14: 46.33 | R14: 0.78 | S14: 4.5 | T14: 0.88 | U14: 10
A15: Пром. | B15: Хлеб пшеничный | C15: 30 | D15: 2.3 | E15: 0.2 | F15: 14.8 | G15: 70.3 | H15: 0.03 | I15: 0.01 | J15: 0 | K15: 0 | L15: 0 | M15: 149.7 | N15: 27.9 | O15: 6 | P15: 4.2 | Q15: 19.5 | R15: 0.33 | S15: 0.96 | T15: 1.8 | U15: 4.35
A16: Пром. | B16: Хлеб ржаной | C16: 20 | D16: 1.3 | E16: 0.2 | F16: 6.7 | G16: 34.2 | H16: 0.04 | I16: 0.02 | J16: 0 | K16: 0 | L16: 0 | M16: 122 | N16: 49 | O16: 7 | P16: 9.4 | Q16: 31.6 | R16: 0.78 | S16: 0 | T16: 6.18 | U16: 0
B17: Итого за Завтрак | C17: 570 | D17: =SUM(D11:D16) -> 24.71 | E17: 24.3 | F17: 78.72 | G17: 632.3 | H17: 0.32 | I17: 0.25 | J17: 797.44 | K17: 0.1 | L17: 5.72 | M17: 533.62 | N17: 543.87 | O17: 222.35 | P17: 194.38 | Q17: 409.8 | R17: 8.2 | S17: 37.93 | T17: 12.47 | U17: 51.98
B18: Итого за день | C18: =C17 -> 570 | D18: =D17 -> 24.71 | E18: 24.3 | F18: 78.72 | G18: 632.3 | H18: 0.32 | I18: 0.25 | J18: 797.44 | K18: 0.1 | L18: 5.72 | M18: 533.62 | N18: 543.87 | O18: 222.35 | P18: 194.38 | Q18: 409.8 | R18: 8.2 | S18: 37.93 | T18: 12.47 | U18: 51.98
A20: 2 день, 1 неделя
A22: № рецептуры | B22: Прием пищи, наименование блюда | C22: Масса | D22: Пищевые вещества | G22: Энергетическая ценность | H22: Витамины | M22: Минеральные вещества
D23: Белки | E23: Жиры | F23: Углеводы | H23: B1 | I23: B2 | J23: A | K23: D | L23: C | M23: Na | N23: K | O23: Ca | P23: Mg | Q23: P | R23: Fe | S23: I | T23: Se | U23: F
C24: г | D24: г | E24: г | F24: г | G24: ккал | H24: мг | I24: мг | J24: мкг рет.экв | K24: мкг | L24: мг | M24: мг | N24: мг | O24: мг | P24: мг | Q24: мг | R24: мг | S24: мкг | T24: мкг | U24: мкг
B25: Вторник, 1 неделя
B26: Горячий завтрак | C26: 7-11
A27: 54-7з-2020 | B27: Салат из белокочанной капусты с растительным маслом | C27: 60 | D27: 1.5 | E27: 6.1 | F27: 6.2 | G27: 85.8 | H27: 0.03 | I27: 0.04 | J27: 122.25 | K27: 0 | L27: 34.78 | M27: 88.69 | N27: 247.73 | O27: 40.39 | P27: 15.18 | Q27: 30.31 | R27: 0.55 | S27: 10.73 | T27: 0.26 | U27: 12.66
A28: 54-22м-2020 | B28: Рагу из курицы | C28: 140/60 | D28: 21 | E28: 7 | F28: 17.5 | G28: 217.3 | H28: 0.14 | I28: 0.11 | J28: 259.68 | K28: 0 | L28: 11.25 | M28: 281.38 | N28: 738.57 | O28: 32.19 | P28: 93.35 | Q28: 192.51 | R28: 2.13 | S28: 42.97 | T28: 17.04 | U28: 156.36
A29: 54-21гн-2020 | B29: Какао с молоком | C29: 200 | D29: 4.7 | E29: 3.5 | F29: 12.5 | G29: 100.4 | H29: 0.04 | I29: 0.16 | J29: 17.25 | K29: 0 | L29: 0.68 | M29: 49.95 | N29: 220.33 | O29: 167.68 | P29: 34.32 | Q29: 130.28 | R29: 1.09 | S29: 11.7 | T29: 2.29 | U29: 38.25
A30: 54-10в-2020 | B30: Булочка ванильная | C30: 50 | D30: 3.9 | E30: 3.37 | F30: 25.37 | G30: 147.4 | H30: 0.04 | I30: 0.02 | J30: 15.93 | K30: 0.12 | L30: 0 | M30: 200 | N30: 41 | O30: 14 | P30: 5 | Q30: 33 | R30: 0.5 | S30: 27.814 | T30: 2.6 | U30: 9.19
A31: Пром. | B31: Хлеб пшеничный | C31: 30 | D31: 2.3 | E31: 0.2 | F31: 14.8 | G31: 70.3 | H31: 0.03 | I31: 0.01 | J31: 0 | K31: 0 | L31: 0 | M31: 149.7 | N31: 27.9 | O31: 6 | P31: 4.2 | Q31: 19.5 | R31: 0.33 | S31: 0.96 | T31: 1.8 | U31: 4.35
A32: Пром. | B32: Хлеб ржаной | C32: 20 | D32: 1.3 | E32: 0.2 | F32: 6.7 | G32: 34.2 | H32: 0.04 | I32: 0.02 | J32: 0 | K32: 0 | L32: 0 | M32: 122 | N32: 49 | O32: 7 | P32: 9.4 | Q32: 31.6 | R32: 0.78 | S32: 0 | T32: 6.18 | U32: 0
B33: Итого за Завтрак | C33: 560 | D33: =SUM(D27:D32) -> 34.7 | E33: =SUM(E27:E32) -> 20.37 | F33: 83.07 | G33: 655.4 | H33: 0.32 | I33: 0.36 | J33: 415.11 | K33: 0.12 | L33: 46.71 | M33: 891.72 | N33: 1324.53 | O33: 267.26 | P33: 161.45 | Q33: 437.2 | R33: 5.38 | S33: 94.174 | T33: 30.17 | U33: 220.81
B34: Итого за день | C34: 560 | D34: =D33 -> 34.7 | E34: =E33 -> 20.37 | F34: 83.07 | G34: 655.4 | H34: 0.32 | I34: 0.36 | J34: 415.11 | K34: 0.12 | L34: 46.71 | M34: 891.72 | N34: 1324.53 | O34: 267.26 | P34: 161.45 | Q34: 437.2 | R34: 5.38 | S34: 94.174 | T34: 30.17 | U34: 220.81
A36: 3 день, 1 неделя
A38: № рецептуры | B38: Прием пищи, наименование блюда | C38: Масса | D38: Пищевые вещества | G38: Энергетическая ценность | H38: Витамины | M38: Минеральные вещества
D39: Белки | E39: Жиры | F39: Углеводы | H39: B1 | I39: B2 | J39: A | K39: D | L39: C | M39: Na | N39: K | O39: Ca | P39: Mg | Q39: P | R39: Fe | S39: I | T39: Se | U39: F
C40: г | D40: г | E40: г | F40: г | G40: ккал | H40: мг | I40: мг | J40: мкг рет.экв | K40: мкг | L40: мг | M40: мг | N40: мг | O40: мг | P40: мг | Q40: мг | R40: мг | S40: мкг | T40: мкг | U40: мкг
B41: Среда, 1 неделя
B42: Горячий завтрак | C42: 7-11
A43: 54-13з-2020 | B43: Салат из свеклы отварной с растительным маслом | C43: 60 | D43: 0.8 | E43: 2.7 | F43: 4.6 | G43: 45.6 | H43: 0.01 | I43: 0.02 | J43: 0.68 | K43: 0 | L43: 2.28 | M43: 78.77 | N43: 136.27 | O43: 19.21 | P43: 10.95 | Q43: 21.51 | R43: 0.7 | S43: 11.99 | T43: 0.35 | U43: 11.4
A44: 54-1г-2020 | B44: Макароны отварные | C44: 150 | D44: 5.3 | E44: 4.9 | F44: 32.8 | G44: 196.8 | H44: 0.06 | I44: 0.02 | J44: 18.36 | K44: 0.09 | L44: 0 | M44: 149.04 | N44: 53.8 | O44: 105.83 | P44: 7.19 | Q44: 40.7 | R44: 0.73 | S44: 20.77 | T44: 0.06 | U44: 11.92
A45: №243 | B45: Сосиски говяжьи отварные, п/ф (2 шт) | C45: 100 | D45: 13.2 | E45: 22.84 | F45: 1.8 | G45: 247.15 | H45: 0 | I45: 0 | J45: 0.08 | K45: 0.01 | L45: 0 | M45: 0 | N45: 0 | O45: 7.44 | P45: 15.51 | Q45: 137.39 | R45: 1.74 | S45: 0 | T45: 0 | U45: 0
A46: 54-3гн-2020 | B46: Чай с лимоном и сахаром | C46: 207 | D46: 0.2 | E46: 0.1 | F46: 6.6 | G46: 27.9 | H46: 0 | I46: 0.01 | J46: 0.38 | K46: 0 | L46: 1.16 | M46: 1.26 | N46: 30.23 | O46: 67 | P46: 4.56 | Q46: 8.52 | R46: 0.77 | S46: 0.01 | T46: 0.02 | U46: 0.7
A47: Пром. | B47: Апельсин | C47: 100 | D47: 1.71 | E47: 0.38 | F47: 15.39 | G47: 71.8 | H47: 0.08 | I47: 0.06 | J47: 15.2 | K47: 0 | L47: 114 | M47: 25 | N47: 374 | O47: 65 | P47: 25 | Q47: 44 | R47: 0.6 | S47: 3.8 | T47: 0.9 | U47: 32.3
A48: Пром. | B48: Хлеб ржаной | C48: 20 | D48: 1.3 | E48: 0.2 | F48: 6.7 | G48: 34.2 | H48: 0.04 | I48: 0.02 | J48: 0 | K48: 0 | L48: 0 | M48: 122 | N48: 49 | O48: 7 | P48: 9.4 | Q48: 31.6 | R48: 0.78 | S48: 0 | T48: 6.18 | U48: 0
A49: Пром. | B49: Хлеб пшеничный | C49: 30 | D49: 2.3 | E49: 0.2 | F49: 14.8 | G49: 70.3 | H49: 0.03 | I49: 0.01 | J49: 0 | K49: 0 | L49: 0 | M49: 149.7 | N49: 27.9 | O49: 6 | P49: 4.2 | Q49: 19.5 | R49: 0.33 | S49: 0.96 | T49: 1.8 | U49: 4.35
B50: Итого за Завтрак | C50: =SUM(C43:C49) -> 667 | D50: 24.81 | E50: 31.32 | F50: 82.69 | G50: 693.75 | H50: 0.22 | I50: 0.14 | J50: 34.7 | K50: 0.1 | L50: 117.44 | M50: 525.77 | N50: 671.2 | O50: 277.48 | P50: 76.81 | Q50: 303.22 | R50: 5.65 | S50: 37.53 | T50: 9.31 | U50: 60.67
B51: Итого за день | C51: =C50 -> 667 | D51: =D50 -> 24.81 | E51: =E50 -> 31.32 | F51: 82.69 | G51: 693.75 | H51: 0.22 | I51: 0.14 | J51: 34.7 | K51: 0.1 | L51: 117.44 | M51: 525.77 | N51: 671.2 | O51: 277.48 | P51: 76.81 | Q51: 303.22 | R51: 5.65 | S51: 37.53 | T51: 9.31 | U51: 60.67
A53: 4 день, 1 неделя
A55: № рецептуры | B55: Прием пищи, наименование блюда | C55: Масса | D55: Пищевые вещества | G55: Энергетическая ценность | H55: Витамины | M55: Минеральные вещества
D56: Белки | E56: Жиры | F56: Углеводы | H56: B1 | I56: B2 | J56: A | K56: D | L56: C | M56: Na | N56: K | O56: Ca | P56: Mg | Q56: P | R56: Fe | S56: I | T56: Se | U56: F
C57: г | D57: г | E57: г | F57: г | G57: ккал | H57: мг | I57: мг | J57: мкг рет.экв | K57: мкг | L57: мг | M57: мг | N57: мг | O57: мг | P57: мг | Q57: мг | R57: мг | S57: мкг | T57: мкг | U57: мкг
B58: Четверг, 1 неделя
B59: Горячий завтрак | C59: 7-11
A60: 54-9з-2020 | B60: Салат из белокочанной капусты с морковью и яблоками с растительным маслом | C60: 60 | D60: 0.8 | E60: 6.1 | F60: 3.6 | G60: 72.5 | H60: 0.02 | I60: 0.02 | J60: 241.63 | K60: 0 | L60: 17.32 | M60: 87.51 | N60: 160.14 | O60: 23.5 | P60: 11.17 | Q60: 18.8 | R60: 0.56 | S60: 9.87 | T60: 0.15 | U60: 10.98
A61: 54-11г-2020 | B61: Картофельное пюре | C61: 150 | D61: 3.1 | E61: 5.3 | F61: 19.8 | G61: 139.4 | H61: 0.12 | I61: 0.11 | J61: 23.8 | K61: 0.09 | L61: 10.2 | M61: 161.78 | N61: 624.83 | O61: 39.49 | P61: 28.23 | Q61: 84.47 | R61: 1.03 | S61: 28.46 | T61: 0.78 | U61: 42.79
A62: ном.рец №608 | B62: Котлета мясная Любительская, полуфабрикат в соусе | C62: 70/30 | D62: 10.04 | E62: 12.79 | F62: 8.12 | G62: 187.9 | H62: 0 | I62: 0 | J62: 38.45 | K62: 0.01 | L62: 1.15 | M62: 3 | N62: 43 | O62: 45.75 | P62: 35.13 | Q62: 173.38 | R62: 1.6 | S62: 0 | T62: 0 | U62: 0
A63: 54-2гн-2020 | B63: Кофейный напиток с молоком | C63: 200 | D63: 3.9 | E63: 2.9 | F63: 11.2 | G63: 86 | H63: 0.03 | I63: 0.13 | J63: 13.29 | K63: 0 | L63: 0.52 | M63: 38.55 | N63: 183.98 | O63: 148.32 | P63: 30.67 | Q63: 106.79 | R63: 1.06 | S63: 9 | T63: 1.76 | U63: 20
A64: Пром. | B64: Хлеб ржаной | C64: 20 | D64: 1.3 | E64: 0.2 | F64: 6.7 | G64: 34.2 | H64: 0.04 | I64: 0.02 | J64: 0 | K64: 0 | L64: 0 | M64: 122 | N64: 49 | O64: 7 | P64: 9.4 | Q64: 31.6 | R64: 0.78 | S64: 0 | T64: 6.18 | U64: 0
A65: Пром. | B65: Хлеб пшеничный | C65: 30 | D65: 2.3 | E65: 0.2 | F65: 14.8 | G65: 70.3 | H65: 0.03 | I65: 0.01 | J65: 0 | K65: 0 | L65: 0 | M65: 149.7 | N65: 27.9 | O65: 6 | P65: 4.2 | Q65: 19.5 | R65: 0.33 | S65: 0.96 | T65: 1.8 | U65: 4.35
B66: Итого за Завтрак | C66: 560 | D66: =SUM(D60:D65) -> 21.44 | E66: 27.49 | F66: 64.22 | G66: 590.3 | H66: 0.24 | I66: 0.29 | J66: 317.17 | K66: 0.1 | L66: 29.19 | M66: 562.54 | N66: 1088.85 | O66: 270.06 | P66: 118.8 | Q66: 434.54 | R66: 5.36 | S66: 48.29 | T66: 10.67 | U66: 78.12
B67: Итого за день | C67: 560 | D67: =D66 -> 21.44 | E67: 27.49 | F67: 64.22 | G67: 590.3 | H67: 0.24 | I67: 0.29 | J67: 317.17 | K67: 0.1 | L67: 29.19 | M67: 562.54 | N67: 1088.85 | O67: 270.06 | P67: 118.8 | Q67: 434.54 | R67: 5.36 | S67: 48.29 | T67: 10.67 | U67: 78.12
A69: 5 день, 1 неделя
A71: № рецептуры | B71: Прием пищи, наименование блюда | C71: Масса | D71: Пищевые вещества | G71: Энергетическая ценность | H71: Витамины | M71: Минеральные вещества
D72: Белки | E72: Жиры | F72: Углеводы | H72: B1 | I72: B2 | J72: A | K72: D | L72: C | M72: Na | N72: K | O72: Ca | P72: Mg | Q72: P | R72: Fe | S72: I | T72: Se | U72: F
C73: г | D73: г | E73: г | F73: г | G73: ккал | H73: мг | I73: мг | J73: мкг рет.экв | K73: мкг | L73: мг | M73: мг | N73: мг | O73: мг | P73: мг | Q73: мг | R73: мг | S73: мкг | T73: мкг | U73: мкг
B74: Пятница, 1 неделя
B75: Горячий завтрак | C75: 7-11
A76: 54-11з-2020 | B76: Салат из моркови с яблоками с растительным маслом | C76: 60 | D76: 0.5 | E76: 6.1 | F76: 4.3 | G76: 74.3 | H76: 0.03 | I76: 0.03 | J76: 732.9 | K76: 0 | L76: 3.63 | M76: 89.79 | N76: 123.26 | O76: 13.5 | P76: 15.57 | Q76: 22.38 | R76: 0.66 | S76: 10.19 | T76: 0.09 | U76: 21.57
A77: 54-6г-2020 | B77: Плов из говядины | C77: 160/40 | D77: 15.32 | E77: 14.73 | F77: 38.58 | G77: 348.3 | H77: 0.07 | I77: 0.12 | J77: 261.6 | K77: 0.1 | L77: 0.08 | M77: 276 | N77: 267 | O77: 117 | P77: 44 | Q77: 194 | R77: 2.2 | S77: 38.67 | T77: 7.3 | U77: 81.72
A78: 54-4гн-2020 | B78: Компот из кураги | C78: 200 | D78: 0.98 | E78: 0.05 | F78: 15.64 | G78: 66.9 | H78: 0.01 | I78: 0.03 | J78: 69.96 | K78: 0 | L78: 0 | M78: 3 | N78: 285 | O78: 90 | P78: 18 | Q78: 25 | R78: 0.6 | S78: 0 | T78: 0 | U78: 0
A79: 54-10в-2020 | B79: Булочка ванильная/булочка с творогом | C79: 50 | D79: 3.9 | E79: 3.37 | F79: 25.39 | G79: 147.4 | H79: 0.04 | I79: 0.02 | J79: 15.93 | K79: 0.12 | L79: 0 | M79: 200 | N79: 41 | O79: 14 | P79: 5 | Q79: 33 | R79: 0.5 | S79: 27.81 | T79: 2.6 | U79: 9.19
A80: Пром. | B80: Хлеб ржаной | C80: 20 | D80: 1.3 | E80: 0.2 | F80: 6.7 | G80: 34.2 | H80: 0.04 | I80: 0.02 | J80: 0 | K80: 0 | L80: 0 | M80: 122 | N80: 49 | O80: 7 | P80: 9.4 | Q80: 31.6 | R80: 0.78 | S80: 0 | T80: 6.18 | U80: 0
A81: Пром. | B81: Хлеб пшеничный | C81: 30 | D81: 2.3 | E81: 0.2 | F81: 14.8 | G81: 70.3 | H81: 0.03 | I81: 0.01 | J81: 0 | K81: 0 | L81: 0 | M81: 149.7 | N81: 27.9 | O81: 6 | P81: 4.2 | Q81: 19.5 | R81: 0.33 | S81: 0.96 | T81: 1.8 | U81: 4.35
B82: Итого за Завтрак | C82: 575 | D82: =SUM(D76:D81) -> 24.3 | E82: =SUM(E76:E81) -> 24.65 | F82: 105.41 | G82: 741.4 | H82: 0.22 | I82: 0.23 | J82: 1080.39 | K82: 0.22 | L82: 3.71 | M82: 840.49 | N82: 793.16 | O82: 247.5 | P82: 96.17 | Q82: 325.48 | R82: 5.07 | S82: 77.63 | T82: 17.97 | U82: 116.83
B83: Итого за день | C83: =C82 -> 575 | D83: =D82 -> 24.3 | E83: =E82 -> 24.65 | F83: 105.41 | G83: 741.4 | H83: 0.22 | I83: 0.23 | J83: 1080.39 | K83: 0.22 | L83: 3.71 | M83: 840.49 | N83: 793.16 | O83: 247.5 | P83: 96.17 | Q83: 325.48 | R83: 5.07 | S83: 77.63 | T83: 17.97 | U83: 116.83
A85: 6 день, 1 неделя
A87: № рецептуры | B87: Прием пищи, наименование блюда | C87: Масса | D87: Пищевые вещества | G87: Энергетическая ценность | H87: Витамины | M87: Минеральные вещества
D88: Белки | E88: Жиры | F88: Углеводы | H88: B1 | I88: B2 | J88: A | K88: D | L88: C | M88: Na | N88: K | O88: Ca | P88: Mg | Q88: P | R88: Fe | S88: I | T88: Se | U88: F
C89: г | D89: г | E89: г | F89: г | G89: ккал | H89: мг | I89: мг | J89: мкг рет.экв | K89: мкг | L89: мг | M89: мг | N89: мг | O89: мг | P89: мг | Q89: мг | R89: мг | S89: мкг | T89: мкг | U89: мкг
B90: Суббота, 1 неделя
B91: Горячий завтрак | C91: 7-11
A92: 54-16з-2020 | B92: Винегрет с растительным маслом | C92: 60 | D92: 0.7 | E92: 5.4 | F92: 4 | G92: 67.1 | H92: 0.02 | I92: 0.02 | J92: 72.89 | K92: 0 | L92: 2.26 | M92: 200.99 | N92: 127.85 | O92: 12.1 | P92: 9.66 | Q92: 21.4 | R92: 0.41 | S92: 7.86 | T92: 0.13 | U92: 11.85
A93: 54-21г-2000 | B93: Горошница | C93: 150 | D93: 14.45 | E93: 1.32 | F93: 33.78 | G93: 204.8 | H93: 0.44 | I93: 0.09 | J93: 0.9 | K93: 0 | L93: 0 | M93: 166 | N93: 543 | O93: 125 | P93: 70 | Q93: 215 | R93: 4.4 | S93: 23.82 | T93: 8.6 | U93: 22.5
A94: № рец. 290 | B94: Птица тушеная в соусе | C94: 50/50 | D94: 13.8 | E94: 14.8 | F94: 3.9 | G94: 211 | H94: 0.1 | I94: 0 | J94: 0 | K94: 0 | L94: 1.5 | M94: 0 | N94: 0 | O94: 26.4 | P94: 16.6 | Q94: 115.3 | R94: 0.9 | S94: 0 | T94: 0 | U94: 0
A95: 54-23гн-2020 | B95: Кофейный напиток с молоком | C95: 200 | D95: 3.9 | E95: 2.9 | F95: 11.2 | G95: 86 | H95: 0.03 | I95: 0.13 | J95: 13.29 | K95: 0 | L95: 0.52 | M95: 38.55 | N95: 183.98 | O95: 148.32 | P95: 30.67 | Q95: 106.79 | R95: 1.06 | S95: 9 | T95: 1.76 | U95: 20
A96: Пром. | B96: Хлеб пшеничный | C96: 30 | D96: 2.3 | E96: 0.2 | F96: 14.8 | G96: 70.3 | H96: 0.03 | I96: 0.01 | J96: 0 | K96: 0 | L96: 0 | M96: 149.7 | N96: 27.9 | O96: 6 | P96: 4.2 | Q96: 19.5 | R96: 0.33 | S96: 0.96 | T96: 1.8 | U96: 4.35
A97: Пром. | B97: Хлеб ржаной | C97: 20 | D97: 1.3 | E97: 0.2 | F97: 6.7 | G97: 34.2 | H97: 0.04 | I97: 0.02 | J97: 0 | K97: 0 | L97: 0 | M97: 122 | N97: 49 | O97: 7 | P97: 9.4 | Q97: 31.6 | R97: 0.78 | S97: 0 | T97: 6.18 | U97: 0
B98: Итого за Завтрак | C98: 560 | D98: =SUM(D92:D97) -> 36.45 | E98: =SUM(E92:E97) -> 24.82 | F98: 74.38 | G98: 673.4 | H98: 0.66 | I98: 0.27 | J98: 87.08 | K98: 0 | L98: 4.28 | M98: 677.24 | N98: 931.73 | O98: 324.82 | P98: 140.53 | Q98: 509.59 | R98: 7.88 | S98: 41.64 | T98: 18.47 | U98: 58.7
B99: Итого за день | C99: 560 | D99: =D98 -> 36.45 | E99: =E98 -> 24.82 | F99: 74.38 | G99: 673.4 | H99: 0.66 | I99: 0.27 | J99: 87.08 | K99: 0 | L99: 4.28 | M99: 677.24 | N99: 931.73 | O99: 324.82 | P99: 140.53 | Q99: 509.59 | R99: 7.88 | S99: 41.64 | T99: 18.47 | U99: 58.7
A101: 7 день, 2 неделя
A103: № рецептуры | B103: Прием пищи, наименование блюда | C103: Масса | D103: Пищевые вещества | G103: Энергетическая ценность | H103: Витамины | M103: Минеральные вещества
D104: Белки | E104: Жиры | F104: Углеводы | H104: B1 | I104: B2 | J104: A | K104: D | L104: C | M104: Na | N104: K | O104: Ca | P104: Mg | Q104: P | R104: Fe | S104: I | T104: Se | U104: F
C105: г | D105: г | E105: г | F105: г | G105: ккал | H105: мг | I105: мг | J105: мкг рет.экв | K105: мкг | L105: мг | M105: мг | N105: мг | O105: мг | P105: мг | Q105: мг | R105: мг | S105: мкг | T105: мкг | U105: мкг
B106: Понедельник, 2 неделя
B107: Горячий завтрак | C107: 7-11
A108: 54-7з-2020 | B108: Салат из белокочанной капусты с растительным маслом | C108: 60 | D108: 1.5 | E108: 6.1 | F108: 6.2 | G108: 85.8 | H108: 0.03 | I108: 0.04 | J108: 122.25 | K108: 0 | L108: 34.78 | M108: 88.69 | N108: 247.73 | O108: 40.39 | P108: 15.18 | Q108: 30.31 | R108: 0.55 | S108: 10.73 | T108: 0.26 | U108: 12.66
A109: 54-4г-2020 | B109: Каша гречневая рассыпчатая | C109: 150 | D109: 8.2 | E109: 6.3 | F109: 35.9 | G109: 233.7 | H109: 0.21 | I109: 0.12 | J109: 19.19 | K109: 0.09 | L109: 0 | M109: 149.45 | N109: 219.36 | O109: 46.62 | P109: 120.16 | Q109: 180.99 | R109: 4.05 | S109: 22.28 | T109: 3.52 | U109: 16.06
A110: ном.рец №608 | B110: Котлета мясная Любительская, полуфабрикат в соусе | C110: 70/30 | D110: 10.04 | E110: 12.79 | F110: 8.12 | G110: 187.9 | H110: 0 | I110: 0 | J110: 38.45 | K110: 0.01 | L110: 1.15 | M110: 3 | N110: 43 | O110: 45.75 | P110: 35.13 | Q110: 173.38 | R110: 1.6 | S110: 0 | T110: 0 | U110: 0
A111: 54-2гн-2020 | B111: Чай с сахаром | C111: 200 | D111: 0.2 | E111: 0 | F111: 6.4 | G111: 26.8 | H111: 0 | I111: 0.01 | J111: 0.3 | K111: 0 | L111: 0.04 | M111: 0.68 | N111: 20.76 | O111: 66.08 | P111: 3.83 | Q111: 7.18 | R111: 0.73 | S111: 0 | T111: 0 | U111: 0
A112: Пром. | B112: Хлеб пшеничный | C112: 30 | D112: 2.3 | E112: 0.2 | F112: 14.8 | G112: 70.3 | H112: 0.03 | I112: 0.01 | J112: 0 | K112: 0 | L112: 0 | M112: 149.7 | N112: 27.9 | O112: 6 | P112: 4.2 | Q112: 19.5 | R112: 0.33 | S112: 0.96 | T112: 1.8 | U112: 4.35
A113: Пром. | B113: Хлеб ржаной | C113: 20 | D113: 1.3 | E113: 0.2 | F113: 6.7 | G113: 34.2 | H113: 0.04 | I113: 0.02 | J113: 0 | K113: 0 | L113: 0 | M113: 122 | N113: 49 | O113: 7 | P113: 9.4 | Q113: 31.6 | R113: 0.78 | S113: 0 | T113: 6.18 | U113: 0
B114: Итого за Завтрак | C114: 560 | D114: =SUM(D108:D113) -> 23.54 | E114: 25.59 | F114: 78.12 | G114: 638.7 | H114: 0.31 | I114: 0.2 | J114: 180.19 | K114: 0.1 | L114: 35.97 | M114: 513.52 | N114: 607.75 | O114: 211.84 | P114: 187.9 | Q114: 442.96 | R114: 8.04 | S114: 33.97 | T114: 11.76 | U114: 33.07
B115: Итого за день | C115: 560 | D115: =D114 -> 23.54 | E115: 25.59 | F115: 78.12 | G115: 638.7 | H115: 0.31 | I115: 0.2 | J115: 180.19 | K115: 0.1 | L115: 35.97 | M115: 513.52 | N115: 607.75 | O115: 211.84 | P115: 187.9 | Q115: 442.96 | R115: 8.04 | S115: 33.97 | T115: 11.76 | U115: 33.07
A117: 8 день, 2 неделя
A119: № рецептуры | B119: Прием пищи, наименование блюда | C119: Масса | D119: Пищевые вещества | G119: Энергетическая ценность | H119: Витамины | M119: Минеральные вещества
D120: Белки | E120: Жиры | F120: Углеводы | H120: B1 | I120: B2 | J120: A | K120: D | L120: C | M120: Na | N120: K | O120: Ca | P120: Mg | Q120: P | R120: Fe | S120: I | T120: Se | U120: F
C121: г | D121: г | E121: г | F121: г | G121: ккал | H121: мг | I121: мг | J121: мкг рет.экв | K121: мкг | L121: мг | M121: мг | N121: мг | O121: мг | P121: мг | Q121: мг | R121: мг | S121: мкг | T121: мкг | U121: мкг
B122: Вторник, 2 неделя
B123: Горячий завтрак | C123: 7-11
A124: 54-13з-2020 | B124: Салат из свеклы отварной с растительным маслом | C124: 60 | D124: 0.8 | E124: 2.7 | F124: 4.6 | G124: 45.6 | H124: 0.01 | I124: 0.02 | J124: 0.68 | K124: 0 | L124: 2.28 | M124: 78.77 | N124: 136.27 | O124: 19.21 | P124: 10.95 | Q124: 21.51 | R124: 0.7 | S124: 11.99 | T124: 0.35 | U124: 11.4
A125: 54-12м-2020 | B125: Плов с курицей | C125: 150/50 | D125: 18.5 | E125: 7.4 | F125: 33.1 | G125: 273.2 | H125: 0.07 | I125: 0.06 | J125: 144.87 | K125: 0 | L125: 2.08 | M125: 272.9 | N125: 287.76 | O125: 72.64 | P125: 78.85 | Q125: 174.89 | R125: 1.53 | S125: 37.41 | T125: 19.63 | U125: 118.1
A126: 54-3гн-2020 | B126: Чай с лимоном и сахаром | C126: 207 | D126: 0.2 | E126: 0.1 | F126: 6.6 | G126: 27.9 | H126: 0 | I126: 0.01 | J126: 0.38 | K126: 0 | L126: 1.16 | M126: 1.26 | N126: 30.23 | O126: 67 | P126: 4.56 | Q126: 8.52 | R126: 0.77 | S126: 0.01 | T126: 0.02 | U126: 0.7
A127: 54-10в-2020 | B127: Булочка ванильная | C127: 50 | D127: 3.9 | E127: 3.37 | F127: 25.39 | G127: 147.4 | H127: 0.04 | I127: 0.02 | J127: 15.93 | K127: 0.12 | L127: 0 | M127: 200 | N127: 41 | O127: 14 | P127: 5 | Q127: 33 | R127: 0.5 | S127: 27.81 | T127: 2.6 | U127: 9.19
A128: Пром. | B128: Хлеб пшеничный | C128: 30 | D128: 2.3 | E128: 0.2 | F128: 14.8 | G128: 70.3 | H128: 0.03 | I128: 0.01 | J128: 0 | K128: 0 | L128: 0 | M128: 149.7 | N128: 27.9 | O128: 6 | P128: 4.2 | Q128: 19.5 | R128: 0.33 | S128: 0.96 | T128: 1.8 | U128: 4.35
A129: Пром. | B129: Хлеб ржаной | C129: 20 | D129: 1.3 | E129: 0.2 | F129: 6.7 | G129: 34.2 | H129: 0.04 | I129: 0.02 | J129: 0 | K129: 0 | L129: 0 | M129: 122 | N129: 49 | O129: 7 | P129: 9.4 | Q129: 31.6 | R129: 0.78 | S129: 0 | T129: 6.18 | U129: 0
B130: Итого за Завтрак | C130: 567 | D130: =SUM(D124:D129) -> 27 | E130: =SUM(E124:E129) -> 13.97 | F130: 91.19 | G130: 598.6 | H130: 0.19 | I130: 0.14 | J130: 161.86 | K130: 0.12 | L130: 5.52 | M130: 824.63 | N130: 572.16 | O130: 185.85 | P130: 112.96 | Q130: 289.02 | R130: 4.61 | S130: 78.18 | T130: 30.58 | U130: 143.74
B131: Итого за день | C131: 567 | D131: =D130 -> 27 | E131: =E130 -> 13.97 | F131: 91.19 | G131: 598.6 | H131: 0.19 | I131: 0.14 | J131: 161.86 | K131: 0.12 | L131: 5.52 | M131: 824.63 | N131: 572.16 | O131: 185.85 | P131: 112.96 | Q131: 289.02 | R131: 4.61 | S131: 78.18 | T131: 30.58 | U131: 143.74
A133: 9 день, 2 неделя
A135: № рецептуры | B135: Прием пищи, наименование блюда | C135: Масса | D135: Пищевые вещества | G135: Энергетическая ценность | H135: Витамины | M135: Минеральные вещества
D136: Белки | E136: Жиры | F136: Углеводы | H136: B1 | I136: B2 | J136: A | K136: D | L136: C | M136: Na | N136: K | O136: Ca | P136: Mg | Q136: P | R136: Fe | S136: I | T136: Se | U136: F
C137: г | D137: г | E137: г | F137: г | G137: ккал | H137: мг | I137: мг | J137: мкг рет.экв | K137: мкг | L137: мг | M137: мг | N137: мг | O137: мг | P137: мг | Q137: мг | R137: мг | S137: мкг | T137: мкг | U137: мкг
B138: Среда, 2 неделя
B139: Горячий завтрак | C139: 7-11
A140: 54-16з-2020 | B140: Винегрет с растительным маслом | C140: 60 | D140: 0.7 | E140: 5.4 | F140: 4 | G140: 67.1 | H140: 0.02 | I140: 0.02 | J140: 72.89 | K140: 0 | L140: 2.26 | M140: 200.99 | N140: 127.85 | O140: 12.1 | P140: 9.66 | Q140: 21.4 | R140: 0.41 | S140: 7.86 | T140: 0.13 | U140: 11.85
A141: 54-11г-2020 | B141: Картофельное пюре | C141: 150 | D141: 3.1 | E141: 5.3 | F141: 19.8 | G141: 139.4 | H141: 0.12 | I141: 0.11 | J141: 23.8 | K141: 0.09 | L141: 10.2 | M141: 161.78 | N141: 624.83 | O141: 39.49 | P141: 28.23 | Q141: 84.47 | R141: 1.03 | S141: 28.46 | T141: 0.78 | U141: 42.79
A142: 54-7р-2020 | B142: Рыба припущенная в молоко | C142: 100 | D142: 13.09 | E142: 7.52 | F142: 2.89 | G142: 131.6 | H142: 0.08 | I142: 0.11 | J142: 9.02 | K142: 0.16 | L142: 1 | M142: 111 | N142: 347 | O142: 68 | P142: 44 | Q142: 202 | R142: 0.7 | S142: 133.48 | T142: 11.9 | U142: 572.6
A143: 54-21гн-2020 | B143: Какао с молоком | C143: 200 | D143: 4.7 | E143: 3.5 | F143: 12.5 | G143: 100.4 | H143: 0.04 | I143: 0.16 | J143: 17.25 | K143: 0 | L143: 0.68 | M143: 49.95 | N143: 220.33 | O143: 167.68 | P143: 34.32 | Q143: 130.28 | R143: 1.09 | S143: 11.7 | T143: 2.29 | U143: 38.25
A144: Пром. | B144: Яблоко | C144: 100 | D144: 0.6 | E144: 0.6 | F144: 14.7 | G144: 66.6 | H144: 0.04 | I144: 0.03 | J144: 7.5 | K144: 0 | L144: 15 | M144: 39 | N144: 417 | O144: 24 | P144: 14 | Q144: 17 | R144: 3.3 | S144: 3 | T144: 0.4 | U144: 12
A145: Пром. | B145: Хлеб пшеничный | C145: 30 | D145: 2.3 | E145: 0.2 | F145: 14.8 | G145: 70.3 | H145: 0.03 | I145: 0.01 | J145: 0 | K145: 0 | L145: 0 | M145: 149.7 | N145: 27.9 | O145: 6 | P145: 4.2 | Q145: 19.5 | R145: 0.33 | S145: 0.96 | T145: 1.8 | U145: 4.35
A146: Пром. | B146: Хлеб ржаной | C146: 20 | D146: 1.3 | E146: 0.2 | F146: 6.7 | G146: 34.2 | H146: 0.04 | I146: 0.02 | J146: 0 | K146: 0 | L146: 0 | M146: 122 | N146: 49 | O146: 7 | P146: 9.4 | Q146: 31.6 | R146: 0.78 | S146: 0 | T146: 6.18 | U146: 0
B147: Итого за Завтрак | C147: =SUM(C140:C146) -> 660 | D147: =SUM(D140:D146) -> 25.79 | E147: 22.72 | F147: 75.39 | G147: 609.6 | H147: 0.37 | I147: 0.46 | J147: 130.46 | K147: 0.25 | L147: 29.14 | M147: 834.42 | N147: 1813.91 | O147: 324.27 | P147: 143.81 | Q147: 506.25 | R147: 7.64 | S147: 185.46 | T147: 23.48 | U147: 681.84
B148: Итого за день | C148: =C147 -> 660 | D148: =D147 -> 25.79 | E148: 22.72 | F148: 75.39 | G148: 609.6 | H148: 0.37 | I148: 0.46 | J148: 130.46 | K148: 0.25 | L148: 29.14 | M148: 834.42 | N148: 1813.91 | O148: 324.27 | P148: 143.81 | Q148: 506.25 | R148: 7.64 | S148: 185.46 | T148: 23.48 | U148: 681.84
A150: 10 день, 2 неделя
A152: № рецептуры | B152: Прием пищи, наименование блюда | C152: Масса | D152: Пищевые вещества | G152: Энергетическая ценность | H152: Витамины | M152: Минеральные вещества
D153: Белки | E153: Жиры | F153: Углеводы | H153: B1 | I153: B2 | J153: A | K153: D | L153: C | M153: Na | N153: K | O153: Ca | P153: Mg | Q153: P | R153: Fe | S153: I | T153: Se | U153: F
C154: г | D154: г | E154: г | F154: г | G154: ккал | H154: мг | I154: мг | J154: мкг рет.экв | K154: мкг | L154: мг | M154: мг | N154: мг | O154: мг | P154: мг | Q154: мг | R154: мг | S154: мкг | T154: мкг | U154: мкг
B155: Четверг, 2 неделя
B156: Горячий завтрак | C156: 7-11
A157: 54-11з-2020 | B157: Салат из моркови с яблоками с растительным маслом | C157: 60 | D157: 0.5 | E157: 6.1 | F157: 4.3 | G157: 74.3 | H157: 0.03 | I157: 0.03 | J157: 732.9 | K157: 0 | L157: 3.63 | M157: 89.79 | N157: 123.26 | O157: 13.5 | P157: 15.57 | Q157: 22.38 | R157: 0.66 | S157: 10.19 | T157: 0.09 | U157: 21.57
A158: 54-6г-2020 | B158: Рис отварной | C158: 150 | D158: 3.6 | E158: 4.8 | F158: 36.4 | G158: 203.5 | H158: 0.03 | I158: 0.02 | J158: 18.36 | K158: 0.09 | L158: 0 | M158: 152.8 | N158: 46.55 | O158: 106.65 | P158: 23.59 | Q158: 72.57 | R158: 0.49 | S158: 20.76 | T158: 7.24 | U158: 27.19
A159: 54-2м-2020 | B159: Гуляш из говядины | C159: 60/40 | D159: 13.76 | E159: 13.91 | F159: 3.9 | G159: 195.8 | H159: 0.04 | I159: 0.12 | J159: 25.46 | K159: 0.07 | L159: 1 | M159: 122 | N159: 322 | O159: 55 | P159: 23 | Q159: 166 | R159: 2.5 | S159: 17.06 | T159: 0.4 | U159: 62.71
A160: 54-21гн-2020 | B160: Кофейный напиток с молоком | C160: 200 | D160: 3.9 | E160: 2.9 | F160: 11.2 | G160: 86 | H160: 0.03 | I160: 0.13 | J160: 13.29 | K160: 0 | L160: 0.52 | M160: 38.55 | N160: 183.98 | O160: 148.32 | P160: 30.67 | Q160: 106.79 | R160: 1.06 | S160: 9 | T160: 1.76 | U160: 20
A161: Пром. | B161: Хлеб пшеничный | C161: 30 | D161: 2.3 | E161: 0.2 | F161: 14.8 | G161: 70.3 | H161: 0.03 | I161: 0.01 | J161: 0 | K161: 0 | L161: 0 | M161: 149.7 | N161: 27.9 | O161: 6 | P161: 4.2 | Q161: 19.5 | R161: 0.33 | S161: 0.96 | T161: 1.8 | U161: 4.35
A162: Пром. | B162: Хлеб ржаной | C162: 20 | D162: 1.3 | E162: 0.2 | F162: 6.7 | G162: 34.2 | H162: 0.04 | I162: 0.02 | J162: 0 | K162: 0 | L162: 0 | M162: 122 | N162: 49 | O162: 7 | P162: 9.4 | Q162: 31.6 | R162: 0.78 | S162: 0 | T162: 6.18 | U162: 0
B163: Итого за Завтрак | C163: 560 | D163: =SUM(D157:D162) -> 25.36 | E163: 28.11 | F163: 77.3 | G163: 664.1 | H163: 0.2 | I163: 0.33 | J163: 790.01 | K163: 0.16 | L163: 5.15 | M163: 674.84 | N163: 752.69 | O163: 336.47 | P163: 106.43 | Q163: 418.84 | R163: 5.82 | S163: 57.97 | T163: 17.47 | U163: 135.82
B164: Итого за день | C164: =C163 -> 560 | D164: =D163 -> 25.36 | E164: 28.11 | F164: 77.3 | G164: 664.1 | H164: 0.2 | I164: 0.33 | J164: 790.01 | K164: 0.16 | L164: 5.15 | M164: 674.84 | N164: 752.69 | O164: 336.47 | P164: 106.43 | Q164: 418.84 | R164: 5.82 | S164: 57.97 | T164: 17.47 | U164: 135.82
A166: 11 день, 2 неделя
A168: № рецептуры | B168: Прием пищи, наименование блюда | C168: Масса | D168: Пищевые вещества | G168: Энергетическая ценность | H168: Витамины | M168: Минеральные вещества
D169: Белки | E169: Жиры | F169: Углеводы | H169: B1 | I169: B2 | J169: A | K169: D | L169: C | M169: Na | N169: K | O169: Ca | P169: Mg | Q169: P | R169: Fe | S169: I | T169: Se | U169: F
C170: г | D170: г | E170: г | F170: г | G170: ккал | H170: мг | I170: мг | J170: мкг рет.экв | K170: мкг | L170: мг | M170: мг | N170: мг | O170: мг | P170: мг | Q170: мг | R170: мг | S170: мкг | T170: мкг | U170: мкг
B171: Пятница, 2 неделя
B172: Горячий завтрак | C172: 7-11
A173: 54-13з-2020 | B173: Салат из свеклы отварной с растительным маслом | C173: 60 | D173: 0.8 | E173: 2.7 | F173: 4.6 | G173: 45.6 | H173: 0.01 | I173: 0.02 | J173: 0.68 | K173: 0 | L173: 2.28 | M173: 78.77 | N173: 136.27 | O173: 19.21 | P173: 10.95 | Q173: 21.51 | R173: 0.7 | S173: 11.99 | T173: 0.35 | U173: 11.4
A174: 54-1г-2020 | B174: Макароны отварные | C174: 150 | D174: 5.3 | E174: 4.9 | F174: 32.8 | G174: 196.8 | H174: 0.06 | I174: 0.02 | J174: 18.36 | K174: 0.09 | L174: 0 | M174: 149.04 | N174: 53.8 | O174: 105.83 | P174: 7.19 | Q174: 40.7 | R174: 0.73 | S174: 20.77 | T174: 0.06 | U174: 11.92
A175: ном.рец №174 | B175: Тефтели мясные из говядины, полуфабрикат в соусе | C175: 80/30 | D175: 10.81 | E175: 10.4 | F175: 8.42 | G175: 168.9 | H175: 0 | I175: 0 | J175: 38.45 | K175: 0.01 | L175: 1.79 | M175: 3 | N175: 43 | O175: 45.75 | P175: 35.13 | Q175: 109 | R175: 1.6 | S175: 0 | T175: 0 | U175: 0
A176: 54-4гн-2020 | B176: Компот из кураги | C176: 200 | D176: 0.98 | E176: 0.05 | F176: 15.64 | G176: 66.9 | H176: 0.01 | I176: 0.03 | J176: 69.96 | K176: 0 | L176: 0 | M176: 3 | N176: 285 | O176: 90 | P176: 18 | Q176: 25 | R176: 0.6 | S176: 0 | T176: 0 | U176: 0
A177: Пром. | B177: Хлеб ржаной | C177: 20 | D177: 1.3 | E177: 0.2 | F177: 6.7 | G177: 34.2 | H177: 0.04 | I177: 0.02 | J177: 0 | K177: 0 | L177: 0 | M177: 122 | N177: 49 | O177: 7 | P177: 9.4 | Q177: 31.6 | R177: 0.78 | S177: 0 | T177: 6.18 | U177: 0
A178: Пром. | B178: Хлеб пшеничный | C178: 30 | D178: 2.3 | E178: 0.2 | F178: 14.8 | G178: 70.3 | H178: 0.03 | I178: 0.01 | J178: 0 | K178: 0 | L178: 0 | M178: 149.7 | N178: 27.9 | O178: 6 | P178: 4.2 | Q178: 19.5 | R178: 0.33 | S178: 0.96 | T178: 1.8 | U178: 4.35
B179: Итого за Завтрак | C179: 570 | D179: =SUM(D173:D178) -> 21.49 | E179: 18.45 | F179: 82.96 | G179: 582.7 | H179: 0.15 | I179: 0.1 | J179: 127.45 | K179: 0.1 | L179: 4.07 | M179: 505.51 | N179: 594.97 | O179: 273.79 | P179: 84.87 | Q179: 247.31 | R179: 4.74 | S179: 33.72 | T179: 8.39 | U179: 27.67
B180: Итого за день | C180: 570 | D180: =D179 -> 21.49 | E180: 18.45 | F180: 82.96 | G180: 582.7 | H180: 0.15 | I180: 0.1 | J180: 127.45 | K180: 0.1 | L180: 4.07 | M180: 505.51 | N180: 594.97 | O180: 273.79 | P180: 84.87 | Q180: 247.31 | R180: 4.74 | S180: 33.72 | T180: 8.39 | U180: 27.67
A182: 12 день, 2 неделя
A184: № рецептуры | B184: Прием пищи, наименование блюда | C184: Масса | D184: Пищевые вещества | G184: Энергетическая ценность | H184: Витамины | M184: Минеральные вещества
D185: Белки | E185: Жиры | F185: Углеводы | H185: B1 | I185: B2 | J185: A | K185: D | L185: C | M185: Na | N185: K | O185: Ca | P185: Mg | Q185: P | R185: Fe | S185: I | T185: Se | U185: F
C186: г | D186: г | E186: г | F186: г | G186: ккал | H186: мг | I186: мг | J186: мкг рет.экв | K186: мкг | L186: мг | M186: мг | N186: мг | O186: мг | P186: мг | Q186: мг | R186: мг | S186: мкг | T186: мкг | U186: мкг
B187: Суббота, 2 неделя
B188: Горячий завтрак | C188: 7-11
A189: 54-9з-2020 | B189: Салат из белокочанной капусты с морковью и яблоками | C189: 60 | D189: 0.8 | E189: 6.1 | F189: 3.6 | G189: 72.5 | H189: 0.02 | I189: 0.02 | J189: 241.63 | K189: 0 | L189: 17.32 | M189: 87.51 | N189: 160.14 | O189: 23.5 | P189: 11.17 | Q189: 18.8 | R189: 0.56 | S189: 9.87 | T189: 0.15 | U189: 10.98
A190: 54-21г-2000 | B190: Горошница | C190: 150 | D190: 14.45 | E190: 1.32 | F190: 33.78 | G190: 204.8 | H190: 0.44 | I190: 0.09 | J190: 0.9 | K190: 0 | L190: 0 | M190: 166 | N190: 543 | O190: 125 | P190: 70 | Q190: 215 | R190: 4.4 | S190: 23.82 | T190: 8.6 | U190: 22.5
A191: № рец. 290 | B191: Птица тушеная в соусе | C191: 50/50 | D191: 13.8 | E191: 14.8 | F191: 3.9 | G191: 211 | H191: 0.1 | I191: 0 | J191: 0 | K191: 0 | L191: 1.5 | M191: 0 | N191: 0 | O191: 26.4 | P191: 16.6 | Q191: 115.3 | R191: 0.9 | S191: 0 | T191: 0 | U191: 0
A192: 54-3гн-2020 | B192: Чай с лимоном и сахаром | C192: 207 | D192: 0.2 | E192: 0.1 | F192: 6.6 | G192: 27.9 | H192: 0 | I192: 0.01 | J192: 0.38 | K192: 0 | L192: 1.16 | M192: 1.26 | N192: 30.23 | O192: 67 | P192: 4.56 | Q192: 8.52 | R192: 0.77 | S192: 0.01 | T192: 0.02 | U192: 0.7
A193: Пром. | B193: Хлеб ржаной | C193: 20 | D193: 1.3 | E193: 0.2 | F193: 6.7 | G193: 34.2 | H193: 0.04 | I193: 0.02 | J193: 0 | K193: 0 | L193: 0 | M193: 122 | N193: 49 | O193: 7 | P193: 9.4 | Q193: 31.6 | R193: 0.78 | S193: 0 | T193: 6.18 | U193: 0
A194: Пром. | B194: Хлеб пшеничный | C194: 30 | D194: 2.3 | E194: 0.2 | F194: 14.8 | G194: 70.3 | H194: 0.03 | I194: 0.01 | J194: 0 | K194: 0 | L194: 0 | M194: 149.7 | N194: 27.9 | O194: 6 | P194: 4.2 | Q194: 19.5 | R194: 0.33 | S194: 0.96 | T194: 1.8 | U194: 4.35
B195: Итого за Завтрак | C195: 567 | D195: =SUM(D189:D194) -> 32.85 | E195: =SUM(E189:E194) -> 22.72 | F195: 69.38 | G195: 620.7 | H195: 0.63 | I195: 0.15 | J195: 242.91 | K195: 0 | L195: 19.98 | M195: 526.47 | N195: 810.27 | O195: 254.9 | P195: 115.93 | Q195: 408.72 | R195: 7.74 | S195: 34.66 | T195: 16.75 | U195: 38.53
B196: Итого за день | C196: 567 | D196: =D195 -> 32.85 | E196: =E195 -> 22.72 | F196: 69.38 | G196: 620.7 | H196: 0.63 | I196: 0.15 | J196: 242.91 | K196: 0 | L196: 19.98 | M196: 526.47 | N196: 810.27 | O196: 254.9 | P196: 115.93 | Q196: 408.72 | R196: 7.74 | S196: 34.66 | T196: 16.75 | U196: 38.53

Sheet 11-18 город
A2: Примерное меню для организации питания детей возрасте от 11 до 18 лет в образовательных учреждениях Мензелинского района РТ на 2 полугодие 2021-2022 учебный год.
A4: 1 день, 1 неделя
A5: № рецептуры | B5: Прием пищи, наименование блюда | C5: Масса | D5: Пищевые вещества | G5: Энергетическая ценность | H5: Витамины | M5: Минеральные вещества
D6: Белки | E6: Жиры | F6: Углеводы | H6: B1 | I6: B2 | J6: A | K6: D | L6: C | M6: Na | N6: K | O6: Ca | P6: Mg | Q6: P | R6: Fe | S6: I | T6: Se | U6: F
C7: г | D7: г | E7: г | F7: г | G7: ккал | H7: мг | I7: мг | J7: мкг рет.экв | K7: мкг | L7: мг | M7: мг | N7: мг | O7: мг | P7: мг | Q7: мг | R7: мг | S7: мкг | T7: мкг | U7: мкг
B8: Понедельник, 1 неделя
B9: Горячий завтрак | C9: 11-18
A10: 54-11з-2020 | B10: Салат из моркови с яблоками с растительным маслом | C10: 60 | D10: 0.5 | E10: 6.1 | F10: 4.3 | G10: 74.3 | H10: 0.03 | I10: 0.03 | J10: 732.9 | K10: 0 | L10: 3.63 | M10: 89.79 | N10: 123.26 | O10: 13.5 | P10: 15.57 | Q10: 22.38 | R10: 0.66 | S10: 10.19 | T10: 0.09 | U10: 21.57
A11: 54-4г-2020 | B11: Каша гречневая рассыпчатая | C11: 180 | D11: 9.87 | E11: 7.61 | F11: 43.12 | G11: 280.5 | H11: 0.26 | I11: 0.14 | J11: 23.02 | K11: 0.11 | L11: 0 | M11: 180 | N11: 263 | O11: 57 | P11: 144 | Q11: 217 | R11: 4.8 | S11: 26.73 | T11: 4.3 | U11: 19.27
A12: ном.рец №174 | B12: Тефтели мясные из говядины, полуфабрикат в соусе | C12: 80/30 | D12: 10.81 | E12: 10.4 | F12: 8.42 | G12: 168.9 | H12: 0 | I12: 0 | J12: 38.45 | K12: 0.01 | L12: 1.79 | M12: 3 | N12: 43 | O12: 45.75 | P12: 35.13 | Q12: 109 | R12: 1.6 | S12: 0 | T12: 0 | U12: 0
A13: 54-4гн-2020 | B13: Чай с молоком и сахаром | C13: 200 | D13: 1.6 | E13: 1.1 | F13: 8.6 | G13: 50.9 | H13: 0.01 | I13: 0.07 | J13: 6.9 | K13: 0 | L13: 0.3 | M13: 19.68 | N13: 81.35 | O13: 103.48 | P13: 9.92 | Q13: 46.33 | R13: 0.78 | S13: 4.5 | T13: 0.88 | U13: 10
A14: Пром. | B14: Хлеб пшеничный | C14: 30 | D14: 2.3 | E14: 0.2 | F14: 14.8 | G14: 70.3 | H14: 0.03 | I14: 0.01 | J14: 0 | K14: 0 | L14: 0 | M14: 149.7 | N14: 27.9 | O14: 6 | P14: 4.2 | Q14: 19.5 | R14: 0.33 | S14: 0.96 | T14: 1.8 | U14: 4.35
A15: Пром. | B15: Хлеб ржаной | C15: 20 | D15: 1.3 | E15: 0.2 | F15: 6.7 | G15: 34.2 | H15: 0.04 | I15: 0.02 | J15: 0 | K15: 0 | L15: 0 | M15: 122 | N15: 49 | O15: 7 | P15: 9.4 | Q15: 31.6 | R15: 0.78 | S15: 0 | T15: 6.18 | U15: 0
B16: Итого за Завтрак | C16: 600 | D16: =SUM(D10:D15) -> 26.38 | E16: 25.61 | F16: 85.94 | G16: 679.1 | H16: 0.37 | I16: 0.27 | J16: 801.27 | K16: 0.12 | L16: 5.72 | M16: 564.17 | N16: 587.51 | O16: 232.73 | P16: 218.22 | Q16: 445.81 | R16: 8.95 | S16: 42.38 | T16: 13.25 | U16: 55.19
B17: Итого за день | C17: 600 | D17: =D16 -> 26.38 | E17: =E16 -> 25.61 | F17: 85.94 | G17: 679.1 | H17: 0.37 | I17: 0.27 | J17: 801.27 | K17: 0.12 | L17: 5.72 | M17: 564.17 | N17: 587.51 | O17: 232.73 | P17: 218.22 | Q17: 445.81 | R17: 8.95 | S17: 42.38 | T17: 13.25 | U17: 55.19
A19: 2 день, 1 неделя
A20: № рецептуры | B20: Прием пищи, наименование блюда | C20: Масса | D20: Пищевые вещества | G20: Энергетическая ценность | H20: Витамины | M20: Минеральные вещества
D21: Белки | E21: Жиры | F21: Углеводы | H21: B1 | I21: B2 | J21: A | K21: D | L21: C | M21: Na | N21: K | O21: Ca | P21: Mg | Q21: P | R21: Fe | S21: I | T21: Se | U21: F
C22: г | D22: г | E22: г | F22: г | G22: ккал | H22: мг | I22: мг | J22: мкг рет.экв | K22: мкг | L22: мг | M22: мг | N22: мг | O22: мг | P22: мг | Q22: мг | R22: мг | S22: мкг | T22: мкг | U22: мкг
B23: Вторник, 1 неделя
B24: Горячий завтрак | C24: 11-18
A25: 54-7з-2020 | B25: Салат из белокочанной капусты с растительным маслом | C25: 60 | D25: 1.5 | E25: 6.1 | F25: 6.2 | G25: 85.8 | H25: 0.03 | I25: 0.04 | J25: 122.25 | K25: 0 | L25: 34.78 | M25: 88.69 | N25: 247.73 | O25: 40.39 | P25: 15.18 | Q25: 30.31 | R25: 0.55 | S25: 10.73 | T25: 0.26 | U25: 12.66
A26: 54-22м-2020 | B26: Рагу из курицы | C26: 160/60 | D26: 23.05 | E26: 7.74 | F26: 19.27 | G26: 239 | H26: 0.15 | I26: 0.12 | J26: 285.64 | K26: 0 | L26: 13 | M26: 310 | N26: 812 | O26: 34 | P26: 102 | Q26: 213 | R26: 2.3 | S26: 47.26 | T26: 18.7 | U26: 172
A27: 54-21гн-2020 | B27: Какао с молоком | C27: 200 | D27: 4.7 | E27: 3.5 | F27: 12.5 | G27: 100.4 | H27: 0.04 | I27: 0.16 | J27: 17.25 | K27: 0 | L27: 0.68 | M27: 49.95 | N27: 220.33 | O27: 167.68 | P27: 34.32 | Q27: 130.28 | R27: 1.09 | S27: 11.7 | T27: 2.29 | U27: 38.25
A28: 54-10в-2020 | B28: Булочка ванильная | C28: 50 | D28: 3.9 | E28: 3.37 | F28: 25.37 | G28: 147.4 | H28: 0.04 | I28: 0.02 | J28: 15.93 | K28: 0.12 | L28: 0 | M28: 200 | N28: 41 | O28: 14 | P28: 5 | Q28: 33 | R28: 0.5 | S28: 27.814 | T28: 2.6 | U28: 9.19
A29: Пром. | B29: Хлеб пшеничный | C29: 30 | D29: 2.3 | E29: 0.2 | F29: 14.8 | G29: 70.3 | H29: 0.03 | I29: 0.01 | J29: 0 | K29: 0 | L29: 0 | M29: 149.7 | N29: 27.9 | O29: 6 | P29: 4.2 | Q29: 19.5 | R29: 0.33 | S29: 0.96 | T29: 1.8 | U29: 4.35
A30: Пром. | B30: Хлеб ржаной | C30: 20 | D30: 1.3 | E30: 0.2 | F30: 6.7 | G30: 34.2 | H30: 0.04 | I30: 0.02 | J30: 0 | K30: 0 | L30: 0 | M30: 122 | N30: 49 | O30: 7 | P30: 9.4 | Q30: 31.6 | R30: 0.78 | S30: 0 | T30: 6.18 | U30: 0
B31: Итого за Завтрак | C31: 580 | D31: =SUM(D25:D30) -> 36.75 | E31: =SUM(E25:E30) -> 21.11 | F31: 84.84 | G31: 677.1 | H31: 0.33 | I31: 0.37 | J31: 441.07 | K31: 0.12 | L31: 48.46 | M31: 920.34 | N31: 1397.96 | O31: 269.07 | P31: 170.1 | Q31: 457.69 | R31: 5.55 | S31: 98.464 | T31: 31.83 | U31: 236.45
B32: Итого за день | C32: 580 | D32: =D31 -> 36.75 | E32: =E31 -> 21.11 | F32: 84.84 | G32: 677.1 | H32: 0.33 | I32: 0.37 | J32: 441.07 | K32: 0.12 | L32: 48.46 | M32: 920.34 | N32: 1397.96 | O32: 269.07 | P32: 170.1 | Q32: 457.69 | R32: 5.55 | S32: 98.464 | T32: 31.83 | U32: 236.45
A34: 3 день, 1 неделя
A35: № рецептуры | B35: Прием пищи, наименование блюда | C35: Масса | D35: Пищевые вещества | G35: Энергетическая ценность | H35: Витамины | M35: Минеральные вещества
D36: Белки | E36: Жиры | F36: Углеводы | H36: B1 | I36: B2 | J36: A | K36: D | L36: C | M36: Na | N36: K | O36: Ca | P36: Mg | Q36: P | R36: Fe | S36: I | T36: Se | U36: F
C37: г | D37: г | E37: г | F37: г | G37: ккал | H37: мг | I37: мг | J37: мкг рет.экв | K37: мкг | L37: мг | M37: мг | N37: мг | O37: мг | P37: мг | Q37: мг | R37: мг | S37: мкг | T37: мкг | U37: мкг
B38: Среда, 1 неделя
B39: Горячий завтрак | C39: 11-18
A40: 54-13з-2020 | B40: Салат из свеклы отварной с растительным маслом | C40: 60 | D40: 0.8 | E40: 2.7 | F40: 4.6 | G40: 45.6 | H40: 0.01 | I40: 0.02 | J40: 0.68 | K40: 0 | L40: 2.28 | M40: 78.77 | N40: 136.27 | O40: 19.21 | P40: 10.95 | Q40: 21.51 | R40: 0.7 | S40: 11.99 | T40: 0.35 | U40: 11.4
A41: 54-1г-2020 | B41: Макароны отварные | C41: 180 | D41: 6.39 | E41: 5.91 | F41: 39.36 | G41: 236.2 | H41: 0.07 | I41: 0.03 | J41: 22.03 | K41: 0.11 | L41: 0 | M41: 179 | N41: 64 | O41: 127 | P41: 9 | Q41: 48 | R41: 0.9 | S41: 24.92 | T41: 0.1 | U41: 14.31
A42: №243 | B42: Сосиски говяжьи отварные, п/ф (2 шт) | C42: 100 | D42: 13.2 | E42: 22.84 | F42: 1.8 | G42: 247.15 | H42: 0 | I42: 0 | J42: 0.08 | K42: 0.01 | L42: 0 | M42: 0 | N42: 0 | O42: 7.44 | P42: 15.51 | Q42: 137.39 | R42: 1.74 | S42: 0 | T42: 0 | U42: 0
A43: 54-3гн-2020 | B43: Чай с лимоном и сахаром | C43: 207 | D43: 0.2 | E43: 0.1 | F43: 6.6 | G43: 27.9 | H43: 0 | I43: 0.01 | J43: 0.38 | K43: 0 | L43: 1.16 | M43: 1.26 | N43: 30.23 | O43: 67 | P43: 4.56 | Q43: 8.52 | R43: 0.77 | S43: 0.01 | T43: 0.02 | U43: 0.7
A44: Пром. | B44: Апельсин | C44: 100 | D44: 1.71 | E44: 0.38 | F44: 15.39 | G44: 71.8 | H44: 0.08 | I44: 0.06 | J44: 15.2 | K44: 0 | L44: 114 | M44: 25 | N44: 374 | O44: 65 | P44: 25 | Q44: 44 | R44: 0.6 | S44: 3.8 | T44: 0.9 | U44: 32.3
A45: Пром. | B45: Хлеб ржаной | C45: 20 | D45: 1.3 | E45: 0.2 | F45: 6.7 | G45: 34.2 | H45: 0.04 | I45: 0.02 | J45: 0 | K45: 0 | L45: 0 | M45: 122 | N45: 49 | O45: 7 | P45: 9.4 | Q45: 31.6 | R45: 0.78 | S45: 0 | T45: 6.18 | U45: 0
A46: Пром. | B46: Хлеб пшеничный | C46: 30 | D46: 2.3 | E46: 0.2 | F46: 14.8 | G46: 70.3 | H46: 0.03 | I46: 0.01 | J46: 0 | K46: 0 | L46: 0 | M46: 149.7 | N46: 27.9 | O46: 6 | P46: 4.2 | Q46: 19.5 | R46: 0.33 | S46: 0.96 | T46: 1.8 | U46: 4.35
B47: Итого за Завтрак | C47: =SUM(C40:C46) -> 697 | D47: =SUM(D40:D46) -> 25.9 | E47: =SUM(E40:E46) -> 32.33 | F47: 89.25 | G47: 733.15 | H47: 0.23 | I47: 0.15 | J47: 38.37 | K47: 0.12 | L47: 117.44 | M47: 555.73 | N47: 681.4 | O47: 298.65 | P47: 78.62 | Q47: 310.52 | R47: 5.82 | S47: 41.68 | T47: 9.35 | U47: 63.06
B48: Итого за день | C48: =C47 -> 697 | D48: =D47 -> 25.9 | E48: =E47 -> 32.33 | F48: 89.25 | G48: 733.15 | H48: 0.23 | I48: 0.15 | J48: 38.37 | K48: 0.12 | L48: 117.44 | M48: 555.73 | N48: 681.4 | O48: 298.65 | P48: 78.62 | Q48: 310.52 | R48: 5.82 | S48: 41.68 | T48: 9.35 | U48: 63.06
A50: 4 день, 1 неделя
A51: № рецептуры | B51: Прием пищи, наименование блюда | C51: Масса | D51: Пищевые вещества | G51: Энергетическая ценность | H51: Витамины | M51: Минеральные вещества
D52: Белки | E52: Жиры | F52: Углеводы | H52: B1 | I52: B2 | J52: A | K52: D | L52: C | M52: Na | N52: K | O52: Ca | P52: Mg | Q52: P | R52: Fe | S52: I | T52: Se | U52: F
C53: г | D53: г | E53: г | F53: г | G53: ккал | H53: мг | I53: мг | J53: мкг рет.экв | K53: мкг | L53: мг | M53: мг | N53: мг | O53: мг | P53: мг | Q53: мг | R53: мг | S53: мкг | T53: мкг | U53: мкг
B54: Четверг, 1 неделя
B55: Горячий завтрак | C55: 11-18
A56: 54-9з-2020 | B56: Салат из белокочанной капусты с морковью и яблоками с растительным маслом | C56: 60 | D56: 0.8 | E56: 6.1 | F56: 3.6 | G56: 72.5 | H56: 0.02 | I56: 0.02 | J56: 241.63 | K56: 0 | L56: 17.32 | M56: 87.51 | N56: 160.14 | O56: 23.5 | P56: 11.17 | Q56: 18.8 | R56: 0.56 | S56: 9.87 | T56: 0.15 | U56: 10.98
A57: 54-11г-2020 | B57: Картофельное пюре | C57: 200 | D57: 4.1 | E57: 7.07 | F57: 26.43 | G57: 185.8 | H57: 0.16 | I57: 0.14 | J57: 31.72 | K57: 0.12 | L57: 13 | M57: 215 | N57: 833 | O57: 53 | P57: 38 | Q57: 112 | R57: 1.3 | S57: 37.95 | T57: 1.1 | U57: 57.05
A58: ном.рец №608 | B58: Котлета мясная Любительская, полуфабрикат в соусе | C58: 70/30 | D58: 10.04 | E58: 12.79 | F58: 8.12 | G58: 187.9 | H58: 0 | I58: 0 | J58: 38.45 | K58: 0.01 | L58: 1.15 | M58: 3 | N58: 43 | O58: 45.75 | P58: 35.13 | Q58: 173.38 | R58: 1.6 | S58: 0 | T58: 0 | U58: 0
A59: 54-2гн-2020 | B59: Кофейный напиток с молоком | C59: 200 | D59: 3.9 | E59: 2.9 | F59: 11.2 | G59: 86 | H59: 0.03 | I59: 0.13 | J59: 13.29 | K59: 0 | L59: 0.52 | M59: 38.55 | N59: 183.98 | O59: 148.32 | P59: 30.67 | Q59: 106.79 | R59: 1.06 | S59: 9 | T59: 1.76 | U59: 20
A60: Пром. | B60: Хлеб ржаной | C60: 20 | D60: 1.3 | E60: 0.2 | F60: 6.7 | G60: 34.2 | H60: 0.04 | I60: 0.02 | J60: 0 | K60: 0 | L60: 0 | M60: 122 | N60: 49 | O60: 7 | P60: 9.4 | Q60: 31.6 | R60: 0.78 | S60: 0 | T60: 6.18 | U60: 0
A61: Пром. | B61: Хлеб пшеничный | C61: 30 | D61: 2.3 | E61: 0.2 | F61: 14.8 | G61: 70.3 | H61: 0.03 | I61: 0.01 | J61: 0 | K61: 0 | L61: 0 | M61: 149.7 | N61: 27.9 | O61: 6 | P61: 4.2 | Q61: 19.5 | R61: 0.33 | S61: 0.96 | T61: 1.8 | U61: 4.35
B62: Итого за Завтрак | C62: 610 | D62: =SUM(D56:D61) -> 22.44 | E62: 29.26 | F62: 70.85 | G62: =SUM(G56:G61) -> 636.7 | H62: 0.28 | I62: 0.32 | J62: 325.09 | K62: 0.13 | L62: 31.99 | M62: 615.76 | N62: 1297.02 | O62: 283.57 | P62: 128.57 | Q62: 462.07 | R62: 5.63 | S62: 57.78 | T62: 10.99 | U62: 92.38
B63: Итого за день | C63: =C62 -> 610 | D63: =D62 -> 22.44 | E63: 29.26 | F63: 70.85 | G63: =G62 -> 636.7 | H63: 0.28 | I63: 0.32 | J63: 325.09 | K63: 0.13 | L63: 31.99 | M63: 615.76 | N63: 1297.02 | O63: 283.57 | P63: 128.57 | Q63: 462.07 | R63: 5.63 | S63: 57.78 | T63: 10.99 | U63: 92.38
A65: 5 день, 1 неделя
A66: № рецептуры | B66: Прием пищи, наименование блюда | C66: Масса | D66: Пищевые вещества | G66: Энергетическая ценность | H66: Витамины | M66: Минеральные вещества
D67: Белки | E67: Жиры | F67: Углеводы | H67: B1 | I67: B2 | J67: A | K67: D | L67: C | M67: Na | N67: K | O67: Ca | P67: Mg | Q67: P | R67: Fe | S67: I | T67: Se | U67: F
C68: г | D68: г | E68: г | F68: г | G68: ккал | H68: мг | I68: мг | J68: мкг рет.экв | K68: мкг | L68: мг | M68: мг | N68: мг | O68: мг | P68: мг | Q68: мг | R68: мг | S68: мкг | T68: мкг | U68: мкг
B69: Пятница, 1 неделя
B70: Горячий завтрак | C70: 11-18
A71: 54-11з-2020 | B71: Салат из моркови с яблоками с растительным маслом | C71: 60 | D71: 0.5 | E71: 6.1 | F71: 4.3 | G71: 74.3 | H71: 0.03 | I71: 0.03 | J71: 732.9 | K71: 0 | L71: 3.63 | M71: 89.79 | N71: 123.26 | O71: 13.5 | P71: 15.57 | Q71: 22.38 | R71: 0.66 | S71: 10.19 | T71: 0.09 | U71: 21.57
A72: 54-6г-2020 | B72: Плов из говядины | C72: 180/40 | D72: 16.86 | E72: 16.22 | F72: 42.44 | G72: 383.1 | H72: 0.07 | I72: 0.13 | J72: 287.76 | K72: 0.11 | L72: 0 | M72: 304 | N72: 295 | O72: 128 | P72: 48 | Q72: 213 | R72: 2.4 | S72: 42.53 | T72: 8.1 | U72: 89.91
A73: 54-4гн-2020 | B73: Компот из кураги | C73: 200 | D73: 0.98 | E73: 0.05 | F73: 15.64 | G73: 66.9 | H73: 0.01 | I73: 0.03 | J73: 69.96 | K73: 0 | L73: 0 | M73: 3 | N73: 285 | O73: 90 | P73: 18 | Q73: 25 | R73: 0.6 | S73: 0 | T73: 0 | U73: 0
A74: 54-10в-2020 | B74: Булочка ванильная/булочка с творогом | C74: 50 | D74: 3.9 | E74: 3.37 | F74: 25.39 | G74: 147.4 | H74: 0.04 | I74: 0.02 | J74: 15.93 | K74: 0.12 | L74: 0 | M74: 200 | N74: 41 | O74: 14 | P74: 5 | Q74: 33 | R74: 0.5 | S74: 27.81 | T74: 2.6 | U74: 9.19
A75: Пром. | B75: Хлеб ржаной | C75: 20 | D75: 1.3 | E75: 0.2 | F75: 6.7 | G75: 34.2 | H75: 0.04 | I75: 0.02 | J75: 0 | K75: 0 | L75: 0 | M75: 122 | N75: 49 | O75: 7 | P75: 9.4 | Q75: 31.6 | R75: 0.78 | S75: 0 | T75: 6.18 | U75: 0
A76: Пром. | B76: Хлеб пшеничный | C76: 30 | D76: 2.3 | E76: 0.2 | F76: 14.8 | G76: 70.3 | H76: 0.03 | I76: 0.01 | J76: 0 | K76: 0 | L76: 0 | M76: 149.7 | N76: 27.9 | O76: 6 | P76: 4.2 | Q76: 19.5 | R76: 0.33 | S76: 0.96 | T76: 1.8 | U76: 4.35
B77: Итого за Завтрак | C77: 595 | D77: =SUM(D71:D76) -> 25.84 | E77: =SUM(E71:E76) -> 26.14 | F77: 109.27 | G77: 776.2 | H77: 0.22 | I77: 0.24 | J77: 1106.55 | K77: 0.23 | L77: 3.63 | M77: 868.49 | N77: 821.16 | O77: 258.5 | P77: 100.17 | Q77: 344.48 | R77: 5.27 | S77: 81.49 | T77: 18.77 | U77: 125.02
B78: Итого за день | C78: =C77 -> 595 | D78: =D77 -> 25.84 | E78: =E77 -> 26.14 | F78: 109.27 | G78: 776.2 | H78: 0.22 | I78: 0.24 | J78: 1106.55 | K78: 0.23 | L78: 3.63 | M78: 868.49 | N78: 821.16 | O78: 258.5 | P78: 100.17 | Q78: 344.48 | R78: 5.27 | S78: 81.49 | T78: 18.77 | U78: 125.02
A81: 7 день, 2 неделя
A82: № рецептуры | B82: Прием пищи, наименование блюда | C82: Масса | D82: Пищевые вещества | G82: Энергетическая ценность | H82: Витамины | M82: Минеральные вещества
D83: Белки | E83: Жиры | F83: Углеводы | H83: B1 | I83: B2 | J83: A | K83: D | L83: C | M83: Na | N83: K | O83: Ca | P83: Mg | Q83: P | R83: Fe | S83: I | T83: Se | U83: F
C84: г | D84: г | E84: г | F84: г | G84: ккал | H84: мг | I84: мг | J84: мкг рет.экв | K84: мкг | L84: мг | M84: мг | N84: мг | O84: мг | P84: мг | Q84: мг | R84: мг | S84: мкг | T84: мкг | U84: мкг
B85: Понедельник, 2 неделя
B86: Горячий завтрак | C86: 11-18
A87: 54-7з-2020 | B87: Салат из белокочанной капусты с растительным маслом | C87: 60 | D87: 1.5 | E87: 6.1 | F87: 6.2 | G87: 85.8 | H87: 0.03 | I87: 0.04 | J87: 122.25 | K87: 0 | L87: 34.78 | M87: 88.69 | N87: 247.73 | O87: 40.39 | P87: 15.18 | Q87: 30.31 | R87: 0.55 | S87: 10.73 | T87: 0.26 | U87: 12.66
A88: 54-4г-2020 | B88: Каша гречневая рассыпчатая | C88: 180 | D88: 9.87 | E88: 7.61 | F88: 43.12 | G88: 280.5 | H88: 0.26 | I88: 0.14 | J88: 23.02 | K88: 0.11 | L88: 0 | M88: 180 | N88: 263 | O88: 57 | P88: 144 | Q88: 217 | R88: 4.8 | S88: 26.73 | T88: 4.3 | U88: 19.27
A89: ном.рец №608 | B89: Котлета мясная Любительская, полуфабрикат в соусе | C89: 70/30 | D89: 10.04 | E89: 12.79 | F89: 8.12 | G89: 187.9 | H89: 0 | I89: 0 | J89: 38.45 | K89: 0.01 | L89: 1.15 | M89: 3 | N89: 43 | O89: 45.75 | P89: 35.13 | Q89: 173.38 | R89: 1.6 | S89: 0 | T89: 0 | U89: 0
A90: 54-2гн-2020 | B90: Чай с сахаром | C90: 200 | D90: 0.2 | E90: 0 | F90: 6.4 | G90: 26.8 | H90: 0 | I90: 0.01 | J90: 0.3 | K90: 0 | L90: 0.04 | M90: 0.68 | N90: 20.76 | O90: 66.08 | P90: 3.83 | Q90: 7.18 | R90: 0.73 | S90: 0 | T90: 0 | U90: 0
A91: Пром. | B91: Хлеб пшеничный | C91: 30 | D91: 2.3 | E91: 0.2 | F91: 14.8 | G91: 70.3 | H91: 0.03 | I91: 0.01 | J91: 0 | K91: 0 | L91: 0 | M91: 149.7 | N91: 27.9 | O91: 6 | P91: 4.2 | Q91: 19.5 | R91: 0.33 | S91: 0.96 | T91: 1.8 | U91: 4.35
A92: Пром. | B92: Хлеб ржаной | C92: 20 | D92: 1.3 | E92: 0.2 | F92: 6.7 | G92: 34.2 | H92: 0.04 | I92: 0.02 | J92: 0 | K92: 0 | L92: 0 | M92: 122 | N92: 49 | O92: 7 | P92: 9.4 | Q92: 31.6 | R92: 0.78 | S92: 0 | T92: 6.18 | U92: 0
B93: Итого за Завтрак | C93: 590 | D93: =SUM(D87:D92) -> 25.21 | E93: 26.9 | F93: 85.34 | G93: 685.5 | H93: 0.36 | I93: 0.22 | J93: 184.02 | K93: 0.12 | L93: 35.97 | M93: 544.07 | N93: 651.39 | O93: 222.22 | P93: 211.74 | Q93: 478.97 | R93: 8.79 | S93: 38.42 | T93: 12.54 | U93: 36.28
B94: Итого за день | C94: =C93 -> 590 | D94: =D93 -> 25.21 | E94: 26.9 | F94: 85.34 | G94: 685.5 | H94: 0.36 | I94: 0.22 | J94: 184.02 | K94: 0.12 | L94: 35.97 | M94: 544.07 | N94: 651.39 | O94: 222.22 | P94: 211.74 | Q94: 478.97 | R94: 8.79 | S94: 38.42 | T94: 12.54 | U94: 36.28
A96: 8 день, 2 неделя
A97: № рецептуры | B97: Прием пищи, наименование блюда | C97: Масса | D97: Пищевые вещества | G97: Энергетическая ценность | H97: Витамины | M97: Минеральные вещества
D98: Белки | E98: Жиры | F98: Углеводы | H98: B1 | I98: B2 | J98: A | K98: D | L98: C | M98: Na | N98: K | O98: Ca | P98: Mg | Q98: P | R98: Fe | S98: I | T98: Se | U98: F
C99: г | D99: г | E99: г | F99: г | G99: ккал | H99: мг | I99: мг | J99: мкг рет.экв | K99: мкг | L99: мг | M99: мг | N99: мг | O99: мг | P99: мг | Q99: мг | R99: мг | S99: мкг | T99: мкг | U99: мкг
B100: Вторник, 2 неделя
B101: Горячий завтрак | C101: 11-18
A102: 54-13з-2020 | B102: Салат из свеклы отварной с растительным маслом | C102: 60 | D102: 0.8 | E102: 2.7 | F102: 4.6 | G102: 45.6 | H102: 0.01 | I102: 0.02 | J102: 0.68 | K102: 0 | L102: 2.28 | M102: 78.77 | N102: 136.27 | O102: 19.21 | P102: 10.95 | Q102: 21.51 | R102: 0.7 | S102: 11.99 | T102: 0.35 | U102: 11.4
A103: 54-12м-2020 | B103: Плов с курицей | C103: 170/50 | D103: 20.34 | E103: 8.18 | F103: 36.38 | G103: 300.4 | H103: 0.08 | I103: 0.07 | J103: 159.36 | K103: 0 | L103: 2 | M103: 301 | N103: 316 | O103: 80 | P103: 87 | Q103: 193 | R103: 1.7 | S103: 41.15 | T103: 21.6 | U103: 129.9
A104: 54-3гн-2020 | B104: Чай с лимоном и сахаром | C104: 207 | D104: 0.2 | E104: 0.1 | F104: 6.6 | G104: 27.9 | H104: 0 | I104: 0.01 | J104: 0.38 | K104: 0 | L104: 1.16 | M104: 1.26 | N104: 30.23 | O104: 67 | P104: 4.56 | Q104: 8.52 | R104: 0.77 | S104: 0.01 | T104: 0.02 | U104: 0.7
A105: 54-10в-2020 | B105: Булочка ванильная | C105: 50 | D105: 3.9 | E105: 3.37 | F105: 25.39 | G105: 147.4 | H105: 0.04 | I105: 0.02 | J105: 15.93 | K105: 0.12 | L105: 0 | M105: 200 | N105: 41 | O105: 14 | P105: 5 | Q105: 33 | R105: 0.5 | S105: 27.81 | T105: 2.6 | U105: 9.19
A106: Пром. | B106: Хлеб пшеничный | C106: 30 | D106: 2.3 | E106: 0.2 | F106: 14.8 | G106: 70.3 | H106: 0.03 | I106: 0.01 | J106: 0 | K106: 0 | L106: 0 | M106: 149.7 | N106: 27.9 | O106: 6 | P106: 4.2 | Q106: 19.5 | R106: 0.33 | S106: 0.96 | T106: 1.8 | U106: 4.35
A107: Пром. | B107: Хлеб ржаной | C107: 20 | D107: 1.3 | E107: 0.2 | F107: 6.7 | G107: 34.2 | H107: 0.04 | I107: 0.02 | J107: 0 | K107: 0 | L107: 0 | M107: 122 | N107: 49 | O107: 7 | P107: 9.4 | Q107: 31.6 | R107: 0.78 | S107: 0 | T107: 6.18 | U107: 0
B108: Итого за Завтрак | C108: 587 | D108: =SUM(D102:D107) -> 28.84 | E108: =SUM(E102:E107) -> 14.75 | F108: 94.47 | G108: 625.8 | H108: 0.2 | I108: 0.15 | J108: 176.35 | K108: 0.12 | L108: 5.44 | M108: 852.73 | N108: 600.4 | O108: 193.21 | P108: 121.11 | Q108: 307.13 | R108: 4.78 | S108: 81.92 | T108: 32.55 | U108: 155.54
B109: Итого за день | C109: 587 | D109: =D108 -> 28.84 | E109: =E108 -> 14.75 | F109: 94.47 | G109: 625.8 | H109: 0.2 | I109: 0.15 | J109: 176.35 | K109: 0.12 | L109: 5.44 | M109: 852.73 | N109: 600.4 | O109: 193.21 | P109: 121.11 | Q109: 307.13 | R109: 4.78 | S109: 81.92 | T109: 32.55 | U109: 155.54
A111: 9 день, 2 неделя
A112: № рецептуры | B112: Прием пищи, наименование блюда | C112: Масса | D112: Пищевые вещества | G112: Энергетическая ценность | H112: Витамины | M112: Минеральные вещества
D113: Белки | E113: Жиры | F113: Углеводы | H113: B1 | I113: B2 | J113: A | K113: D | L113: C | M113: Na | N113: K | O113: Ca | P113: Mg | Q113: P | R113: Fe | S113: I | T113: Se | U113: F
C114: г | D114: г | E114: г | F114: г | G114: ккал | H114: мг | I114: мг | J114: мкг рет.экв | K114: мкг | L114: мг | M114: мг | N114: мг | O114: мг | P114: мг | Q114: мг | R114: мг | S114: мкг | T114: мкг | U114: мкг
B115: Среда, 2 неделя
B116: Горячий завтрак | C116: 11-18
A117: 54-16з-2020 | B117: Винегрет с растительным маслом | C117: 60 | D117: 0.7 | E117: 5.4 | F117: 4 | G117: 67.1 | H117: 0.02 | I117: 0.02 | J117: 72.89 | K117: 0 | L117: 2.26 | M117: 200.99 | N117: 127.85 | O117: 12.1 | P117: 9.66 | Q117: 21.4 | R117: 0.41 | S117: 7.86 | T117: 0.13 | U117: 11.85
A118: 54-11г-2020 | B118: Картофельное пюре | C118: 200 | D118: 4.1 | E118: 7.07 | F118: 26.43 | G118: 185.8 | H118: 0.16 | I118: 0.14 | J118: 31.72 | K118: 0.12 | L118: 13 | M118: 215 | N118: 833 | O118: 53 | P118: 38 | Q118: 112 | R118: 1.3 | S118: 37.95 | T118: 1.1 | U118: 57.05
A119: 54-7р-2020 | B119: Рыба припущенная в молоко | C119: 100 | D119: 13.09 | E119: 7.52 | F119: 2.89 | G119: 131.6 | H119: 0.08 | I119: 0.11 | J119: 9.02 | K119: 0.16 | L119: 1 | M119: 111 | N119: 347 | O119: 68 | P119: 44 | Q119: 202 | R119: 0.7 | S119: 133.48 | T119: 11.9 | U119: 572.6
A120: 54-21гн-2020 | B120: Какао с молоком | C120: 200 | D120: 4.7 | E120: 3.5 | F120: 12.5 | G120: 100.4 | H120: 0.04 | I120: 0.16 | J120: 17.25 | K120: 0 | L120: 0.68 | M120: 49.95 | N120: 220.33 | O120: 167.68 | P120: 34.32 | Q120: 130.28 | R120: 1.09 | S120: 11.7 | T120: 2.29 | U120: 38.25
A121: Пром. | B121: Хлеб пшеничный | C121: 30 | D121: 2.3 | E121: 0.2 | F121: 14.8 | G121: 70.3 | H121: 0.03 | I121: 0.01 | J121: 0 | K121: 0 | L121: 0 | M121: 149.7 | N121: 27.9 | O121: 6 | P121: 4.2 | Q121: 19.5 | R121: 0.33 | S121: 0.96 | T121: 1.8 | U121: 4.35
A122: Пром. | B122: Хлеб ржаной | C122: 20 | D122: 1.3 | E122: 0.2 | F122: 6.7 | G122: 34.2 | H122: 0.04 | I122: 0.02 | J122: 0 | K122: 0 | L122: 0 | M122: 122 | N122: 49 | O122: 7 | P122: 9.4 | Q122: 31.6 | R122: 0.78 | S122: 0 | T122: 6.18 | U122: 0
A123: Пром. | B123: Яблоко | C123: 100 | D123: 0.6 | E123: 0.6 | F123: 14.7 | G123: 66.6 | H123: 0.04 | I123: 0.03 | J123: 7.5 | K123: 0 | L123: 15 | M123: 39 | N123: 417 | O123: 24 | P123: 14 | Q123: 17 | R123: 3.3 | S123: 3 | T123: 0.4 | U123: 12
B124: Итого за Завтрак | C124: =SUM(C117:C123) -> 710 | D124: =SUM(D117:D123) -> 26.79 | E124: 24.49 | F124: 82.02 | G124: 656 | H124: 0.41 | I124: 0.49 | J124: 138.38 | K124: 0.28 | L124: 31.94 | M124: 887.64 | N124: 2022.08 | O124: 337.78 | P124: 153.58 | Q124: 533.78 | R124: 7.91 | S124: 194.95 | T124: 23.8 | U124: 696.1
B125: Итого за день | C125: =C124 -> 710 | D125: =D124 -> 26.79 | E125: 24.49 | F125: 82.02 | G125: 656 | H125: 0.41 | I125: 0.49 | J125: 138.38 | K125: 0.28 | L125: 31.94 | M125: 887.64 | N125: 2022.08 | O125: 337.78 | P125: 153.58 | Q125: 533.78 | R125: 7.91 | S125: 194.95 | T125: 23.8 | U125: 696.1
A127: 10 день, 2 неделя
A128: № рецептуры | B128: Прием пищи, наименование блюда | C128: Масса | D128: Пищевые вещества | G128: Энергетическая ценность | H128: Витамины | M128: Минеральные вещества
D129: Белки | E129: Жиры | F129: Углеводы | H129: B1 | I129: B2 | J129: A | K129: D | L129: C | M129: Na | N129: K | O129: Ca | P129: Mg | Q129: P | R129: Fe | S129: I | T129: Se | U129: F
C130: г | D130: г | E130: г | F130: г | G130: ккал | H130: мг | I130: мг | J130: мкг рет.экв | K130: мкг | L130: мг | M130: мг | N130: мг | O130: мг | P130: мг | Q130: мг | R130: мг | S130: мкг | T130: мкг | U130: мкг
B131: Четверг, 2 неделя
B132: Горячий завтрак | C132: 11-18
A133: 54-11з-2020 | B133: Салат из моркови с яблоками с растительным маслом | C133: 60 | D133: 0.5 | E133: 6.1 | F133: 4.3 | G133: 74.3 | H133: 0.03 | I133: 0.03 | J133: 732.9 | K133: 0 | L133: 3.63 | M133: 89.79 | N133: 123.26 | O133: 13.5 | P133: 15.57 | Q133: 22.38 | R133: 0.66 | S133: 10.19 | T133: 0.09 | U133: 21.57
A134: 54-6г-2020 | B134: Рис отварной | C134: 180 | D134: 4.32 | E134: 5.78 | F134: 43.74 | G134: 244.2 | H134: 0.04 | I134: 0.03 | J134: 22.03 | K134: 0.11 | L134: 0 | M134: 184 | N134: 56 | O134: 129 | P134: 28 | Q134: 87 | R134: 0.6 | S134: 24.91 | T134: 8.7 | U134: 32.63
A135: 54-2м-2020 | B135: Гуляш из говядины | C135: 60/40 | D135: 13.76 | E135: 13.91 | F135: 3.9 | G135: 195.8 | H135: 0.04 | I135: 0.12 | J135: 25.46 | K135: 0.07 | L135: 1 | M135: 122 | N135: 322 | O135: 55 | P135: 23 | Q135: 166 | R135: 2.5 | S135: 17.06 | T135: 0.4 | U135: 62.71
A136: 54-21гн-2020 | B136: Кофейный напиток с молоком | C136: 200 | D136: 3.9 | E136: 2.9 | F136: 11.2 | G136: 86 | H136: 0.03 | I136: 0.13 | J136: 13.29 | K136: 0 | L136: 0.52 | M136: 38.55 | N136: 183.98 | O136: 148.32 | P136: 30.67 | Q136: 106.79 | R136: 1.06 | S136: 9 | T136: 1.76 | U136: 20
A137: Пром. | B137: Хлеб пшеничный | C137: 30 | D137: 2.3 | E137: 0.2 | F137: 14.8 | G137: 70.3 | H137: 0.03 | I137: 0.01 | J137: 0 | K137: 0 | L137: 0 | M137: 149.7 | N137: 27.9 | O137: 6 | P137: 4.2 | Q137: 19.5 | R137: 0.33 | S137: 0.96 | T137: 1.8 | U137: 4.35
A138: Пром. | B138: Хлеб ржаной | C138: 20 | D138: 1.3 | E138: 0.2 | F138: 6.7 | G138: 34.2 | H138: 0.04 | I138: 0.02 | J138: 0 | K138: 0 | L138: 0 | M138: 122 | N138: 49 | O138: 7 | P138: 9.4 | Q138: 31.6 | R138: 0.78 | S138: 0 | T138: 6.18 | U138: 0
B139: Итого за Завтрак | C139: 590 | D139: =SUM(D133:D138) -> 26.08 | E139: =SUM(E133:E138) -> 29.09 | F139: 84.64 | G139: =SUM(G133:G138) -> 704.8 | H139: 0.21 | I139: 0.34 | J139: 793.68 | K139: 0.18 | L139: 5.15 | M139: 706.04 | N139: 762.14 | O139: 358.82 | P139: 110.84 | Q139: 433.27 | R139: 5.93 | S139: 62.12 | T139: 18.93 | U139: 141.26
B140: Итого за день | C140: =C139 -> 590 | D140: =D139 -> 26.08 | E140: =E139 -> 29.09 | F140: 84.64 | G140: 704.8 | H140: 0.21 | I140: 0.34 | J140: 793.68 | K140: 0.18 | L140: 5.15 | M140: 706.04 | N140: 762.14 | O140: 358.82 | P140: 110.84 | Q140: 433.27 | R140: 5.93 | S140: 62.12 | T140: 18.93 | U140: 141.26
A142: 11 день, 2 неделя
A143: № рецептуры | B143: Прием пищи, наименование блюда | C143: Масса | D143: Пищевые вещества | G143: Энергетическая ценность | H143: Витамины | M143: Минеральные вещества
D144: Белки | E144: Жиры | F144: Углеводы | H144: B1 | I144: B2 | J144: A | K144: D | L144: C | M144: Na | N144: K | O144: Ca | P144: Mg | Q144: P | R144: Fe | S144: I | T144: Se | U144: F
C145: г | D145: г | E145: г | F145: г | G145: ккал | H145: мг | I145: мг | J145: мкг рет.экв | K145: мкг | L145: мг | M145: мг | N145: мг | O145: мг | P145: мг | Q145: мг | R145: мг | S145: мкг | T145: мкг | U145: мкг
B146: Пятница, 2 неделя
B147: Горячий завтрак | C147: 11-18
A148: 54-13з-2020 | B148: Салат из свеклы отварной с растительным маслом | C148: 60 | D148: 0.8 | E148: 2.7 | F148: 4.6 | G148: 45.6 | H148: 0.01 | I148: 0.02 | J148: 0.68 | K148: 0 | L148: 2.28 | M148: 78.77 | N148: 136.27 | O148: 19.21 | P148: 10.95 | Q148: 21.51 | R148: 0.7 | S148: 11.99 | T148: 0.35 | U148: 11.4
A149: 54-1г-2020 | B149: Макароны отварные | C149: 180 | D149: 6.39 | E149: 5.91 | F149: 39.36 | G149: 236.2 | H149: 0.07 | I149: 0.03 | J149: 22.03 | K149: 0.11 | L149: 0 | M149: 179 | N149: 64 | O149: 127 | P149: 9 | Q149: 48 | R149: 0.9 | S149: 24.92 | T149: 0.1 | U149: 14.31
A150: ном.рец №174 | B150: Тефтели мясные из говядины, полуфабрикат в соусе | C150: 80/30 | D150: 10.81 | E150: 10.4 | F150: 8.42 | G150: 168.9 | H150: 0 | I150: 0 | J150: 38.45 | K150: 0.01 | L150: 1.79 | M150: 3 | N150: 43 | O150: 45.75 | P150: 35.13 | Q150: 109 | R150: 1.6 | S150: 0 | T150: 0 | U150: 0
A151: 54-4гн-2020 | B151: Компот из кураги | C151: 200 | D151: 0.98 | E151: 0.05 | F151: 15.64 | G151: 66.9 | H151: 0.01 | I151: 0.03 | J151: 69.96 | K151: 0 | L151: 0 | M151: 3 | N151: 285 | O151: 90 | P151: 18 | Q151: 25 | R151: 0.6 | S151: 0 | T151: 0 | U151: 0
A152: Пром. | B152: Хлеб ржаной | C152: 20 | D152: 1.3 | E152: 0.2 | F152: 6.7 | G152: 34.2 | H152: 0.04 | I152: 0.02 | J152: 0 | K152: 0 | L152: 0 | M152: 122 | N152: 49 | O152: 7 | P152: 9.4 | Q152: 31.6 | R152: 0.78 | S152: 0 | T152: 6.18 | U152: 0
A153: Пром. | B153: Хлеб пшеничный | C153: 30 | D153: 2.3 | E153: 0.2 | F153: 14.8 | G153: 70.3 | H153: 0.03 | I153: 0.01 | J153: 0 | K153: 0 | L153: 0 | M153: 149.7 | N153: 27.9 | O153: 6 | P153: 4.2 | Q153: 19.5 | R153: 0.33 | S153: 0.96 | T153: 1.8 | U153: 4.35
B154: Итого за Завтрак | C154: 600 | D154: =SUM(D148:D153) -> 22.58 | E154: 19.46 | F154: 89.52 | G154: =SUM(G148:G153) -> 622.1 | H154: 0.16 | I154: 0.11 | J154: 131.12 | K154: 0.12 | L154: 4.07 | M154: 535.47 | N154: 605.17 | O154: 294.96 | P154: 86.68 | Q154: 254.61 | R154: 4.91 | S154: 37.87 | T154: 8.43 | U154: 30.06
B155: Итого за день | C155: =C154 -> 600 | D155: =D154 -> 22.58 | E155: 19.46 | F155: 89.52 | G155: 622.1 | H155: 0.16 | I155: 0.11 | J155: 131.12 | K155: 0.12 | L155: 4.07 | M155: 535.47 | N155: 605.17 | O155: 294.96 | P155: 86.68 | Q155: 254.61 | R155: 4.91 | S155: 37.87 | T155: 8.43 | U155: 30.06

Sheet овз 7-11 и 11-18 город
A2: Примерное меню для организации питания детей с ОВЗ в возрасте от 7 до 11 лет и от 11- до 18 лет в образовательных учреждениях Мензелинского района РТ на 2 полугодие 2021-2022 учебный год.
A4: 1 день, 1 неделя
A5: № рецептуры | B5: Прием пищи, наименование блюда | C5: Масса | D5: Масса | E5: Пищевые вещества | H5: Энергетическая ценность | I5: Витамины | N5: Минеральные вещества
E6: Белки | F6: Жиры | G6: Углеводы | I6: B1 | J6: B2 | K6: A | L6: D | M6: C | N6: Na | O6: K | P6: Ca | Q6: Mg | R6: P | S6: Fe | T6: I | U6: Se | V6: F
C7: г | D7: г | E7: г | F7: г | G7: г | H7: ккал | I7: мг | J7: мг | K7: мкг рет.экв | L7: мкг | M7: мг | N7: мг | O7: мг | P7: мг | Q7: мг | R7: мг | S7: мг | T7: мкг | U7: мкг | V7: мкг
B8: Понедельник, 1 неделя
B9: Буфет | C9: 7-11 | D9: 11-18
A10: 54-3гн-2020 | B10: Чай с лимоном и сахаром | C10: 155 | D10: 155 | E10: 0.2 | F10: 0 | G10: 5 | H10: 20.9 | I10: 0 | J10: 0.01 | K10: 0.29 | L10: 0 | M10: 0.87 | N10: 0.95 | O10: 22.67 | P10: 50.25 | Q10: 3.42 | R10: 6.39 | S10: 0.58 | T10: 0.01 | U10: 0.02 | V10: 0.53
A11: Пром. | B11: Сушка простая | C11: 20 | D11: 20 | E11: 2.2 | F11: 0.3 | G11: 13.8 | H11: 66.1 | I11: 0.05 | J11: 0.01 | K11: 0 | L11: 0 | M11: 0 | N11: 121 | O11: 37 | P11: 6 | Q11: 9.2 | R11: 24.2 | S11: 0.58 | T11: 0 | U11: 0 | V11: 0
B12: Итого за буфет | C12: 175 | D12: 175 | E12: 2.4 | F12: 0.3 | G12: 18.8 | H12: 87 | I12: 0.05 | J12: 0.02 | K12: 0.29 | L12: 0 | M12: 0.87 | N12: 121.95 | O12: 59.67 | P12: 56.25 | Q12: 12.62 | R12: 30.59 | S12: 1.16 | T12: 0.01 | U12: 0.02 | V12: 0.53
B13: Горячий завтрак | C13: 7-11 | D13: 11-18
A14: 54-11з-2020 | B14: Салат из моркови с яблоками с растительным маслом | C14: 60 | D14: 60 | E14: 0.5 | F14: 6.1 | G14: 4.3 | H14: 74.3 | I14: 0.03 | J14: 0.03 | K14: 732.9 | L14: 0 | M14: 3.63 | N14: 89.79 | O14: 123.26 | P14: 13.5 | Q14: 15.57 | R14: 22.38 | S14: 0.66 | T14: 10.19 | U14: 0.09 | V14: 21.57
A15: 54-4г-2020 | B15: Каша гречневая рассыпчатая | C15: 150 | D15: 180 | E15: 8.2 | F15: 6.3 | G15: 35.9 | H15: 233.7 | I15: 0.21 | J15: 0.12 | K15: 19.19 | L15: 0.09 | M15: 0 | N15: 149.45 | O15: 219.36 | P15: 46.62 | Q15: 120.16 | R15: 180.99 | S15: 4.05 | T15: 22.28 | U15: 3.52 | V15: 16.06
A16: ном.рец №174 | B16: Тефтели мясные из говядины, полуфабрикат в соусе | C16: 80/30 | D16: 80/30 | E16: 10.81 | F16: 10.4 | G16: 8.42 | H16: 168.9 | I16: 0 | J16: 0 | K16: 38.45 | L16: 0.01 | M16: 1.79 | N16: 3 | O16: 43 | P16: 45.75 | Q16: 35.13 | R16: 109 | S16: 1.6 | T16: 0 | U16: 0 | V16: 0
A17: 54-4гн-2020 | B17: Чай с молоком и сахаром | C17: 200 | D17: 200 | E17: 1.6 | F17: 1.1 | G17: 8.6 | H17: 50.9 | I17: 0.01 | J17: 0.07 | K17: 6.9 | L17: 0 | M17: 0.3 | N17: 19.68 | O17: 81.35 | P17: 103.48 | Q17: 9.92 | R17: 46.33 | S17: 0.78 | T17: 4.5 | U17: 0.88 | V17: 10
A18: Пром. | B18: Хлеб пшеничный | C18: 30 | D18: 30 | E18: 2.3 | F18: 0.2 | G18: 14.8 | H18: 70.3 | I18: 0.03 | J18: 0.01 | K18: 0 | L18: 0 | M18: 0 | N18: 149.7 | O18: 27.9 | P18: 6 | Q18: 4.2 | R18: 19.5 | S18: 0.33 | T18: 0.96 | U18: 1.8 | V18: 4.35
A19: Пром. | B19: Хлеб ржаной | C19: 20 | D19: 20 | E19: 1.3 | F19: 0.2 | G19: 6.7 | H19: 34.2 | I19: 0.04 | J19: 0.02 | K19: 0 | L19: 0 | M19: 0 | N19: 122 | O19: 49 | P19: 7 | Q19: 9.4 | R19: 31.6 | S19: 0.78 | T19: 0 | U19: 6.18 | V19: 0
B20: Итого за Завтрак | C20: 570 | D20: 600 | E20: =SUM(E14:E19) -> 24.71 | F20: 24.3 | G20: 78.72 | H20: 632.3 | I20: 0.32 | J20: 0.25 | K20: 797.44 | L20: 0.1 | M20: 5.72 | N20: 533.62 | O20: 543.87 | P20: 222.35 | Q20: 194.38 | R20: 409.8 | S20: 8.2 | T20: 37.93 | U20: 12.47 | V20: 51.98
B21: Итого за день | C21: =C20+C12 -> 745 | D21: 775 | E21: 27.11 | F21: 24.6 | G21: 97.52 | H21: 719.3 | I21: 0.37 | J21: 0.27 | K21: 797.73 | L21: 0.1 | M21: 6.59 | N21: 655.57 | O21: 603.54 | P21: 278.6 | Q21: 207 | R21: 440.39 | S21: 9.36 | T21: 37.94 | U21: 12.49 | V21: 52.51
A23: 2 день, 1 неделя
A24: № рецептуры | B24: Прием пищи, наименование блюда | C24: Масса | D24: Масса | E24: Пищевые вещества | H24: Энергетическая ценность | I24: Витамины | N24: Минеральные вещества
E25: Белки | F25: Жиры | G25: Углеводы | I25: B1 | J25: B2 | K25: A | L25: D | M25: C | N25: Na | O25: K | P25: Ca | Q25: Mg | R25: P | S25: Fe | T25: I | U25: Se | V25: F
C26: г | D26: г | E26: г | F26: г | G26: г | H26: ккал | I26: мг | J26: мг | K26: мкг рет.экв | L26: мкг | M26: мг | N26: мг | O26: мг | P26: мг | Q26: мг | R26: мг | S26: мг | T26: мкг | U26: мкг | V26: мкг
B27: Вторник, 1 неделя
B28: Буфет | C28: 7-11 | D28: 11-18
A29: 54-13к-2020 | B29: Каша вязкая молочная пшеничная | C29: 150 | D29: 150 | E29: 6.1 | F29: 6.9 | G29: 29 | H29: 202.7 | I29: 0.1 | J29: 0.13 | K29: 30.74 | L29: 0.1 | M29: 0.41 | N29: 256.57 | O29: 169.91 | P29: 113.68 | Q29: 29.4 | R29: 154.74 | S29: 1.64 | T29: 37.16 | U29: 24.8 | V29: 16.11
A30: 54-1гн-2020 | B30: Чай без сахара | C30: 150 | D30: 150 | E30: 0.1 | F30: 0 | G30: 0 | H30: 1.1 | I30: 0 | J30: 0.01 | K30: 0.23 | L30: 0 | M30: 0.03 | N30: 0.47 | O30: 15.44 | P30: 49.47 | Q30: 2.87 | R30: 5.38 | S30: 0.54 | T30: 0 | U30: 0 | V30: 0
B31: Итого за буфет | C31: 300 | D31: 300 | E31: 6.2 | F31: 6.9 | G31: 29 | H31: 203.8 | I31: 0.1 | J31: 0.14 | K31: 30.97 | L31: 0.1 | M31: 0.44 | N31: 257.04 | O31: 185.35 | P31: 163.15 | Q31: 32.27 | R31: 160.12 | S31: 2.18 | T31: 37.16 | U31: 24.8 | V31: 16.11
B32: Горячий завтрак | C32: 7-11 | D32: 11-18
A33: 54-7з-2020 | B33: Салат из белокочанной капусты с растительным маслом | C33: 60 | D33: 60 | E33: 1.5 | F33: 6.1 | G33: 6.2 | H33: 85.8 | I33: 0.03 | J33: 0.04 | K33: 122.25 | L33: 0 | M33: 34.78 | N33: 88.69 | O33: 247.73 | P33: 40.39 | Q33: 15.18 | R33: 30.31 | S33: 0.55 | T33: 10.73 | U33: 0.26 | V33: 12.66
A34: 54-22м-2020 | B34: Рагу из курицы | C34: 140/60 | D34: 160/60 | E34: 21 | F34: 7 | G34: 17.5 | H34: 217.3 | I34: 0.14 | J34: 0.11 | K34: 259.68 | L34: 0 | M34: 11.25 | N34: 281.38 | O34: 738.57 | P34: 32.19 | Q34: 93.35 | R34: 192.51 | S34: 2.13 | T34: 42.97 | U34: 17.04 | V34: 156.36
A35: 54-21гн-2020 | B35: Какао с молоком | C35: 200 | D35: 200 | E35: 4.7 | F35: 3.5 | G35: 12.5 | H35: 100.4 | I35: 0.04 | J35: 0.16 | K35: 17.25 | L35: 0 | M35: 0.68 | N35: 49.95 | O35: 220.33 | P35: 167.68 | Q35: 34.32 | R35: 130.28 | S35: 1.09 | T35: 11.7 | U35: 2.29 | V35: 38.25
A36: 54-10в-2020 | B36: Булочка ванильная | C36: 50 | D36: 50 | E36: 3.9 | F36: 3.37 | G36: 25.37 | H36: 147.4 | I36: 0.04 | J36: 0.02 | K36: 15.93 | L36: 0.12 | M36: 0 | N36: 200 | O36: 41 | P36: 14 | Q36: 5 | R36: 33 | S36: 0.5 | T36: 27.814 | U36: 2.6 | V36: 9.19
A37: Пром. | B37: Хлеб пшеничный | C37: 30 | D37: 30 | E37: 2.3 | F37: 0.2 | G37: 14.8 | H37: 70.3 | I37: 0.03 | J37: 0.01 | K37: 0 | L37: 0 | M37: 0 | N37: 149.7 | O37: 27.9 | P37: 6 | Q37: 4.2 | R37: 19.5 | S37: 0.33 | T37: 0.96 | U37: 1.8 | V37: 4.35
A38: Пром. | B38: Хлеб ржаной | C38: 20 | D38: 20 | E38: 1.3 | F38: 0.2 | G38: 6.7 | H38: 34.2 | I38: 0.04 | J38: 0.02 | K38: 0 | L38: 0 | M38: 0 | N38: 122 | O38: 49 | P38: 7 | Q38: 9.4 | R38: 31.6 | S38: 0.78 | T38: 0 | U38: 6.18 | V38: 0
B39: Итого за Завтрак | C39: 560 | D39: 580 | E39: =SUM(E33:E38) -> 34.7 | F39: =SUM(F33:F38) -> 20.37 | G39: 83.07 | H39: 655.4 | I39: 0.32 | J39: 0.36 | K39: 415.11 | L39: 0.12 | M39: 46.71 | N39: 891.72 | O39: 1324.53 | P39: 267.26 | Q39: 161.45 | R39: 437.2 | S39: 5.38 | T39: 94.174 | U39: 30.17 | V39: 220.81
B40: Итого за день | C40: 860 | D40: 880 | E40: =E39+E31 -> 40.9 | F40: =F39+F31 -> 27.27 | G40: 112.07 | H40: 859.2 | I40: 0.42 | J40: 0.5 | K40: 446.08 | L40: 0.22 | M40: 47.15 | N40: 1148.76 | O40: 1509.88 | P40: 430.41 | Q40: 193.72 | R40: 597.32 | S40: 7.56 | T40: 131.334 | U40: 54.97 | V40: 236.92
A42: 3 день, 1 неделя
A43: № рецептуры | B43: Прием пищи, наименование блюда | C43: Масса | D43: Масса | E43: Пищевые вещества | H43: Энергетическая ценность | I43: Витамины | N43: Минеральные вещества
E44: Белки | F44: Жиры | G44: Углеводы | I44: B1 | J44: B2 | K44: A | L44: D | M44: C | N44: Na | O44: K | P44: Ca | Q44: Mg | R44: P | S44: Fe | T44: I | U44: Se | V44: F
C45: г | D45: г | E45: г | F45: г | G45: г | H45: ккал | I45: мг | J45: мг | K45: мкг рет.экв | L45: мкг | M45: мг | N45: мг | O45: мг | P45: мг | Q45: мг | R45: мг | S45: мг | T45: мкг | U45: мкг | V45: мкг
B46: Среда, 1 неделя
B47: Буфет | C47: 7-11 | D47: 11-18
A48: 54-4гн-2020 | B48: Чай с молоком и сахаром | C48: 150 | D48: 150 | E48: 1.2 | F48: 0.9 | G48: 6.5 | H48: 38.2 | I48: 0.01 | J48: 0.05 | K48: 5.18 | L48: 0 | M48: 0.23 | N48: 14.76 | O48: 61.01 | P48: 77.61 | Q48: 7.44 | R48: 34.75 | S48: 0.58 | T48: 3.38 | U48: 0.66 | V48: 7.5
A49: Пром. | B49: Сушка простая | C49: 20 | D49: 20 | E49: 2.2 | F49: 0.3 | G49: 13.8 | H49: 66.1 | I49: 0.05 | J49: 0.01 | K49: 0 | L49: 0 | M49: 0 | N49: 121 | O49: 37 | P49: 6 | Q49: 9.2 | R49: 24.2 | S49: 0.58 | T49: 0 | U49: 0 | V49: 0
B50: Итого за буфет | C50: 170 | D50: 170 | E50: 3.4 | F50: 1.2 | G50: 20.3 | H50: 104.3 | I50: 0.06 | J50: 0.06 | K50: 5.18 | L50: 0 | M50: 0.23 | N50: 135.76 | O50: 98.01 | P50: 83.61 | Q50: 16.64 | R50: 58.95 | S50: 1.16 | T50: 3.38 | U50: 0.66 | V50: 7.5
B51: Горячий завтрак | C51: 7-11 | D51: 11-18
A52: 54-13з-2020 | B52: Салат из свеклы отварной с растительным маслом | C52: 60 | D52: 60 | E52: 0.8 | F52: 2.7 | G52: 4.6 | H52: 45.6 | I52: 0.01 | J52: 0.02 | K52: 0.68 | L52: 0 | M52: 2.28 | N52: 78.77 | O52: 136.27 | P52: 19.21 | Q52: 10.95 | R52: 21.51 | S52: 0.7 | T52: 11.99 | U52: 0.35 | V52: 11.4
A53: 54-1г-2020 | B53: Макароны отварные | C53: 150 | D53: 180 | E53: 5.3 | F53: 4.9 | G53: 32.8 | H53: 196.8 | I53: 0.06 | J53: 0.02 | K53: 18.36 | L53: 0.09 | M53: 0 | N53: 149.04 | O53: 53.8 | P53: 105.83 | Q53: 7.19 | R53: 40.7 | S53: 0.73 | T53: 20.77 | U53: 0.06 | V53: 11.92
A54: №243 | B54: Сосиски говяжьи отварные, п/ф (2 шт) | C54: 100 | D54: 100 | E54: 13.2 | F54: 22.84 | G54: 1.8 | H54: 247.15 | I54: 0 | J54: 0 | K54: 0.08 | L54: 0.01 | M54: 0 | N54: 0 | O54: 0 | P54: 7.44 | Q54: 15.51 | R54: 137.39 | S54: 1.74 | T54: 0 | U54: 0 | V54: 0
A55: Пром. | B55: Апельсин | C55: 100 | D55: 100 | E55: 1.71 | F55: 0.38 | G55: 15.39 | H55: 71.8 | I55: 0.08 | J55: 0.06 | K55: 15.2 | L55: 0 | M55: 114 | N55: 25 | O55: 374 | P55: 65 | Q55: 25 | R55: 44 | S55: 0.6 | T55: 3.8 | U55: 0.9 | V55: 32.3
A56: 54-3гн-2020 | B56: Чай с лимоном и сахаром | C56: 207 | D56: 207 | E56: 0.2 | F56: 0.1 | G56: 6.6 | H56: 27.9 | I56: 0 | J56: 0.01 | K56: 0.38 | L56: 0 | M56: 1.16 | N56: 1.26 | O56: 30.23 | P56: 67 | Q56: 4.56 | R56: 8.52 | S56: 0.77 | T56: 0.01 | U56: 0.02 | V56: 0.7
A57: Пром. | B57: Хлеб ржаной | C57: 20 | D57: 20 | E57: 1.3 | F57: 0.2 | G57: 6.7 | H57: 34.2 | I57: 0.04 | J57: 0.02 | K57: 0 | L57: 0 | M57: 0 | N57: 122 | O57: 49 | P57: 7 | Q57: 9.4 | R57: 31.6 | S57: 0.78 | T57: 0 | U57: 6.18 | V57: 0
A58: Пром. | B58: Хлеб пшеничный | C58: 30 | D58: 30 | E58: 2.3 | F58: 0.2 | G58: 14.8 | H58: 70.3 | I58: 0.03 | J58: 0.01 | K58: 0 | L58: 0 | M58: 0 | N58: 149.7 | O58: 27.9 | P58: 6 | Q58: 4.2 | R58: 19.5 | S58: 0.33 | T58: 0.96 | U58: 1.8 | V58: 4.35
B59: Итого за Завтрак | C59: =SUM(C52:C58) -> 667 | D59: =SUM(D52:D58) -> 697 | E59: =SUM(E52:E58) -> 24.81 | F59: =SUM(F52:F58) -> 31.32 | G59: 82.69 | H59: 693.75 | I59: 0.22 | J59: 0.14 | K59: 34.7 | L59: 0.1 | M59: 117.44 | N59: 525.77 | O59: 671.2 | P59: 277.48 | Q59: 76.81 | R59: 303.22 | S59: 5.65 | T59: 37.53 | U59: 9.31 | V59: 60.67
B60: Итого за день | C60: =C59+C50 -> 837 | D60: =D59+D50 -> 867 | E60: =E59+E50 -> 28.21 | F60: =F59+F50 -> 32.52 | G60: 102.99 | H60: 798.05 | I60: 0.28 | J60: 0.2 | K60: 39.88 | L60: 0.1 | M60: 117.67 | N60: 661.53 | O60: 769.21 | P60: 361.09 | Q60: 93.45 | R60: 362.17 | S60: 6.81 | T60: 40.91 | U60: 9.97 | V60: 68.17
A62: 4 день, 1 неделя
A63: № рецептуры | B63: Прием пищи, наименование блюда | C63: Масса | D63: Масса | E63: Пищевые вещества | H63: Энергетическая ценность | I63: Витамины | N63: Минеральные вещества
E64: Белки | F64: Жиры | G64: Углеводы | I64: B1 | J64: B2 | K64: A | L64: D | M64: C | N64: Na | O64: K | P64: Ca | Q64: Mg | R64: P | S64: Fe | T64: I | U64: Se | V64: F
C65: г | D65: г | E65: г | F65: г | G65: г | H65: ккал | I65: мг | J65: мг | K65: мкг рет.экв | L65: мкг | M65: мг | N65: мг | O65: мг | P65: мг | Q65: мг | R65: мг | S65: мг | T65: мкг | U65: мкг | V65: мкг
B66: Четверг, 1 неделя
B67: Буфет | C67: 7-11 | D67: 11-18
A68: 54-6к-2020 | B68: Каша вязкая молочная пшенная | C68: 150 | D68: 150 | E68: 6.2 | F68: 7.6 | G68: 28.2 | H68: 206.2 | I68: 0.14 | J68: 0.11 | K68: 31.22 | L68: 0.1 | M68: 0.41 | N68: 254.01 | O68: 162.17 | P68: 107.34 | Q68: 36.72 | R68: 139.54 | S68: 0.99 | T68: 38.71 | U68: 2.33 | V68: 26.31
A69: 54-1гн-2020 | B69: Чай без сахара | C69: 150 | D69: 150 | E69: 0.1 | F69: 0 | G69: 0 | H69: 1.1 | I69: 0 | J69: 0.01 | K69: 0.23 | L69: 0 | M69: 0.03 | N69: 0.47 | O69: 15.44 | P69: 49.47 | Q69: 2.87 | R69: 5.38 | S69: 0.54 | T69: 0 | U69: 0 | V69: 0
B70: Итого за буфет | C70: 300 | D70: 300 | E70: 6.3 | F70: 7.6 | G70: 28.2 | H70: 207.3 | I70: 0.14 | J70: 0.12 | K70: 31.45 | L70: 0.1 | M70: 0.44 | N70: 254.48 | O70: 177.61 | P70: 156.81 | Q70: 39.59 | R70: 144.92 | S70: 1.53 | T70: 38.71 | U70: 2.33 | V70: 26.31
B71: Горячий завтрак | C71: 7-11 | D71: 11-18
A72: 54-9з-2020 | B72: Салат из белокочанной капусты с морковью и яблоками с растительным маслом | C72: 60 | D72: 60 | E72: 0.8 | F72: 6.1 | G72: 3.6 | H72: 72.5 | I72: 0.02 | J72: 0.02 | K72: 241.63 | L72: 0 | M72: 17.32 | N72: 87.51 | O72: 160.14 | P72: 23.5 | Q72: 11.17 | R72: 18.8 | S72: 0.56 | T72: 9.87 | U72: 0.15 | V72: 10.98
A73: 54-11г-2020 | B73: Картофельное пюре | C73: 150 | D73: 200 | E73: 3.1 | F73: 5.3 | G73: 19.8 | H73: 139.4 | I73: 0.12 | J73: 0.11 | K73: 23.8 | L73: 0.09 | M73: 10.2 | N73: 161.78 | O73: 624.83 | P73: 39.49 | Q73: 28.23 | R73: 84.47 | S73: 1.03 | T73: 28.46 | U73: 0.78 | V73: 42.79
A74: ном.рец №608 | B74: Котлета мясная Любительская, полуфабрикат в соусе | C74: 70/30 | D74: 70/30 | E74: 10.04 | F74: 12.79 | G74: 8.12 | H74: 187.9 | I74: 0 | J74: 0 | K74: 38.45 | L74: 0.01 | M74: 1.15 | N74: 3 | O74: 43 | P74: 45.75 | Q74: 35.13 | R74: 173.38 | S74: 1.6 | T74: 0 | U74: 0 | V74: 0
A75: 54-2гн-2020 | B75: Кофейный напиток с молоком | C75: 200 | D75: 200 | E75: 3.9 | F75: 2.9 | G75: 11.2 | H75: 86 | I75: 0.03 | J75: 0.13 | K75: 13.29 | L75: 0 | M75: 0.52 | N75: 38.55 | O75: 183.98 | P75: 148.32 | Q75: 30.67 | R75: 106.79 | S75: 1.06 | T75: 9 | U75: 1.76 | V75: 20
A76: Пром. | B76: Хлеб ржаной | C76: 20 | D76: 20 | E76: 1.3 | F76: 0.2 | G76: 6.7 | H76: 34.2 | I76: 0.04 | J76: 0.02 | K76: 0 | L76: 0 | M76: 0 | N76: 122 | O76: 49 | P76: 7 | Q76: 9.4 | R76: 31.6 | S76: 0.78 | T76: 0 | U76: 6.18 | V76: 0
A77: Пром. | B77: Хлеб пшеничный | C77: 30 | D77: 30 | E77: 2.3 | F77: 0.2 | G77: 14.8 | H77: 70.3 | I77: 0.03 | J77: 0.01 | K77: 0 | L77: 0 | M77: 0 | N77: 149.7 | O77: 27.9 | P77: 6 | Q77: 4.2 | R77: 19.5 | S77: 0.33 | T77: 0.96 | U77: 1.8 | V77: 4.35
B78: Итого за Завтрак | C78: 560 | D78: 610 | E78: =SUM(E72:E77) -> 21.44 | F78: 27.49 | G78: 64.22 | H78: 590.3 | I78: 0.24 | J78: 0.29 | K78: 317.17 | L78: 0.1 | M78: 29.19 | N78: 562.54 | O78: 1088.85 | P78: 270.06 | Q78: 118.8 | R78: 434.54 | S78: 5.36 | T78: 48.29 | U78: 10.67 | V78: 78.12
B79: Итого за день | C79: =C78+C70 -> 860 | D79: =D78+D70 -> 910 | E79: =E78+E70 -> 27.74 | F79: 35.09 | G79: 92.42 | H79: 797.6 | I79: 0.38 | J79: 0.41 | K79: 348.62 | L79: 0.2 | M79: 29.63 | N79: 817.02 | O79: 1266.46 | P79: 426.87 | Q79: 158.39 | R79: 579.46 | S79: 6.89 | T79: 87 | U79: 13 | V79: 104.43
A81: 5 день, 1 неделя
A82: № рецептуры | B82: Прием пищи, наименование блюда | C82: Масса | D82: Масса | E82: Пищевые вещества | H82: Энергетическая ценность | I82: Витамины | N82: Минеральные вещества
E83: Белки | F83: Жиры | G83: Углеводы | I83: B1 | J83: B2 | K83: A | L83: D | M83: C | N83: Na | O83: K | P83: Ca | Q83: Mg | R83: P | S83: Fe | T83: I | U83: Se | V83: F
C84: г | D84: г | E84: г | F84: г | G84: г | H84: ккал | I84: мг | J84: мг | K84: мкг рет.экв | L84: мкг | M84: мг | N84: мг | O84: мг | P84: мг | Q84: мг | R84: мг | S84: мг | T84: мкг | U84: мкг | V84: мкг
B85: Пятница, 1 неделя
B86: Буфет | C86: 7-11 | D86: 11-18
A87: 54-1г-2020 | B87: Макароны отварные | C87: 150 | D87: 150 | E87: 5.3 | F87: 4.9 | G87: 32.8 | H87: 196.8 | I87: 0.06 | J87: 0.02 | K87: 18.36 | L87: 0.09 | M87: 0 | N87: 149.04 | O87: 53.8 | P87: 105.83 | Q87: 7.19 | R87: 40.7 | S87: 0.73 | T87: 20.77 | U87: 0.06 | V87: 11.92
A88: 54-2гн-2020 | B88: Чай с сахаром | C88: 150 | D88: 150 | E88: 0.1 | F88: 0 | G88: 4.8 | H88: 20.1 | I88: 0 | J88: 0.01 | K88: 0.23 | L88: 0 | M88: 0.03 | N88: 0.51 | O88: 15.57 | P88: 49.56 | Q88: 2.87 | R88: 5.38 | S88: 0.55 | T88: 0 | U88: 0 | V88: 0
B89: Итого за буфет | C89: 300 | D89: 300 | E89: 5.4 | F89: 4.9 | G89: 37.6 | H89: 216.9 | I89: 0.06 | J89: 0.03 | K89: 18.59 | L89: 0.09 | M89: 0.03 | N89: 149.55 | O89: 69.37 | P89: 155.39 | Q89: 10.06 | R89: 46.08 | S89: 1.28 | T89: 20.77 | U89: 0.06 | V89: 11.92
B90: Горячий завтрак | C90: 7-11 | D90: 11-18
A91: 54-11з-2020 | B91: Салат из моркови с яблоками с растительным маслом | C91: 60 | D91: 60 | E91: 0.5 | F91: 6.1 | G91: 4.3 | H91: 74.3 | I91: 0.03 | J91: 0.03 | K91: 732.9 | L91: 0 | M91: 3.63 | N91: 89.79 | O91: 123.26 | P91: 13.5 | Q91: 15.57 | R91: 22.38 | S91: 0.66 | T91: 10.19 | U91: 0.09 | V91: 21.57
A92: 54-6г-2020 | B92: Плов из говядины | C92: 160/40 | D92: 180/40 | E92: 15.32 | F92: 14.73 | G92: 38.58 | H92: 348.3 | I92: 0.07 | J92: 0.12 | K92: 261.6 | L92: 0.1 | M92: 0.08 | N92: 276 | O92: 267 | P92: 117 | Q92: 44 | R92: 194 | S92: 2.2 | T92: 38.67 | U92: 7.3 | V92: 81.72
A93: 54-4гн-2020 | B93: Компот из кураги | C93: 200 | D93: 200 | E93: 0.98 | F93: 0.05 | G93: 15.64 | H93: 66.9 | I93: 0.01 | J93: 0.03 | K93: 69.96 | L93: 0 | M93: 0 | N93: 3 | O93: 285 | P93: 90 | Q93: 18 | R93: 25 | S93: 0.6 | T93: 0 | U93: 0 | V93: 0
A94: №695 | B94: булочка ванильная/булочка с творогом | C94: 50 | D94: 50 | E94: 3.9 | F94: 3.37 | G94: 25.39 | H94: 147.4 | I94: 0.04 | J94: 0.02 | K94: 15.93 | L94: 0.12 | M94: 0 | N94: 200 | O94: 41 | P94: 14 | Q94: 5 | R94: 33 | S94: 0.5 | T94: 27.81 | U94: 2.6 | V94: 9.19
A95: Пром. | B95: Хлеб ржаной | C95: 20 | D95: 20 | E95: 1.3 | F95: 0.2 | G95: 6.7 | H95: 34.2 | I95: 0.04 | J95: 0.02 | K95: 0 | L95: 0 | M95: 0 | N95: 122 | O95: 49 | P95: 7 | Q95: 9.4 | R95: 31.6 | S95: 0.78 | T95: 0 | U95: 6.18 | V95: 0
A96: Пром. | B96: Хлеб пшеничный | C96: 30 | D96: 30 | E96: 2.3 | F96: 0.2 | G96: 14.8 | H96: 70.3 | I96: 0.03 | J96: 0.01 | K96: 0 | L96: 0 | M96: 0 | N96: 149.7 | O96: 27.9 | P96: 6 | Q96: 4.2 | R96: 19.5 | S96: 0.33 | T96: 0.96 | U96: 1.8 | V96: 4.35
B97: Итого за Завтрак | C97: 560 | D97: 580 | E97: =SUM(E91:E96) -> 24.3 | F97: =SUM(F91:F96) -> 24.65 | G97: 105.41 | H97: 741.4 | I97: 0.22 | J97: 0.23 | K97: 1080.39 | L97: 0.22 | M97: 3.71 | N97: 840.49 | O97: 793.16 | P97: 247.5 | Q97: 96.17 | R97: 325.48 | S97: 5.07 | T97: 77.63 | U97: 17.97 | V97: 116.83
B98: Итого за день | C98: =C97+C89 -> 860 | D98: =D97+D89 -> 880 | E98: =E97+E89 -> 29.7 | F98: =F97+F89 -> 29.55 | G98: 143.01 | H98: 958.3 | I98: 0.28 | J98: 0.26 | K98: 1098.98 | L98: 0.31 | M98: 3.74 | N98: 990.04 | O98: 862.53 | P98: 402.89 | Q98: 106.23 | R98: 371.56 | S98: 6.35 | T98: 98.4 | U98: 18.03 | V98: 128.75
A100: 6 день, 1 неделя
A101: № рецептуры | B101: Прием пищи, наименование блюда | C101: Масса | D101: Масса | E101: Пищевые вещества | H101: Энергетическая ценность | I101: Витамины | N101: Минеральные вещества
E102: Белки | F102: Жиры | G102: Углеводы | I102: B1 | J102: B2 | K102: A | L102: D | M102: C | N102: Na | O102: K | P102: Ca | Q102: Mg | R102: P | S102: Fe | T102: I | U102: Se | V102: F
C103: г | D103: г | E103: г | F103: г | G103: г | H103: ккал | I103: мг | J103: мг | K103: мкг рет.экв | L103: мкг | M103: мг | N103: мг | O103: мг | P103: мг | Q103: мг | R103: мг | S103: мг | T103: мкг | U103: мкг | V103: мкг
B104: Суббота, 1 неделя
B105: Буфет | C105: 7-11 | D105: 11-18
A106: 54-3гн-2020 | B106: Чай с лимоном и сахаром | C106: 155 | D106: 155 | E106: 0.2 | F106: 0 | G106: 5 | H106: 20.9 | I106: 0 | J106: 0.01 | K106: 0.29 | L106: 0 | M106: 0.87 | N106: 0.95 | O106: 22.67 | P106: 50.25 | Q106: 3.42 | R106: 6.39 | S106: 0.58 | T106: 0.01 | U106: 0.02 | V106: 0.53
A107: Пром. | B107: Сушка простая | C107: 20 | D107: 20 | E107: 2.2 | F107: 0.3 | G107: 13.8 | H107: 66.1 | I107: 0.05 | J107: 0.01 | K107: 0 | L107: 0 | M107: 0 | N107: 121 | O107: 37 | P107: 6 | Q107: 9.2 | R107: 24.2 | S107: 0.58 | T107: 0 | U107: 0 | V107: 0
B108: Итого за буфет | C108: 175 | D108: 175 | E108: 2.4 | F108: 0.3 | G108: 18.8 | H108: 87 | I108: 0.05 | J108: 0.02 | K108: 0.29 | L108: 0 | M108: 0.87 | N108: 121.95 | O108: 59.67 | P108: 56.25 | Q108: 12.62 | R108: 30.59 | S108: 1.16 | T108: 0.01 | U108: 0.02 | V108: 0.53
B109: Горячий завтрак | C109: 7-11
A110: 54-16з-2020 | B110: Винегрет с растительным маслом | C110: 60 | E110: 0.7 | F110: 5.4 | G110: 4 | H110: 67.1 | I110: 0.02 | J110: 0.02 | K110: 72.89 | L110: 0 | M110: 2.26 | N110: 200.99 | O110: 127.85 | P110: 12.1 | Q110: 9.66 | R110: 21.4 | S110: 0.41 | T110: 7.86 | U110: 0.13 | V110: 11.85
A111: 54-21г-2000 | B111: Горошница | C111: 150 | E111: 14.45 | F111: 1.32 | G111: 33.78 | H111: 204.8 | I111: 0.44 | J111: 0.09 | K111: 0.9 | L111: 0 | M111: 0 | N111: 166 | O111: 543 | P111: 125 | Q111: 70 | R111: 215 | S111: 4.4 | T111: 23.82 | U111: 8.6 | V111: 22.5
A112: № рец. 290 | B112: Птица тушеная в соусе | C112: 50/50 | E112: 13.8 | F112: 14.8 | G112: 3.9 | H112: 211 | I112: 0.1 | J112: 0 | K112: 0 | L112: 0 | M112: 1.5 | N112: 0 | O112: 0 | P112: 26.4 | Q112: 16.6 | R112: 115.3 | S112: 0.9 | T112: 0 | U112: 0 | V112: 0
A113: 54-23гн-2020 | B113: Кофейный напиток с молоком | C113: 200 | E113: 3.9 | F113: 2.9 | G113: 11.2 | H113: 86 | I113: 0.03 | J113: 0.13 | K113: 13.29 | L113: 0 | M113: 0.52 | N113: 38.55 | O113: 183.98 | P113: 148.32 | Q113: 30.67 | R113: 106.79 | S113: 1.06 | T113: 9 | U113: 1.76 | V113: 20
A114: Пром. | B114: Хлеб пшеничный | C114: 30 | E114: 2.3 | F114: 0.2 | G114: 14.8 | H114: 70.3 | I114: 0.03 | J114: 0.01 | K114: 0 | L114: 0 | M114: 0 | N114: 149.7 | O114: 27.9 | P114: 6 | Q114: 4.2 | R114: 19.5 | S114: 0.33 | T114: 0.96 | U114: 1.8 | V114: 4.35
A115: Пром. | B115: Хлеб ржаной | C115: 20 | E115: 1.3 | F115: 0.2 | G115: 6.7 | H115: 34.2 | I115: 0.04 | J115: 0.02 | K115: 0 | L115: 0 | M115: 0 | N115: 122 | O115: 49 | P115: 7 | Q115: 9.4 | R115: 31.6 | S115: 0.78 | T115: 0 | U115: 6.18 | V115: 0
B116: Итого за Завтрак | C116: 560 | E116: =SUM(E110:E115) -> 36.45 | F116: 24.82 | G116: 74.38 | H116: 673.4 | I116: 0.66 | J116: 0.27 | K116: 87.08 | L116: 0 | M116: 4.28 | N116: 677.24 | O116: 931.73 | P116: 324.82 | Q116: 140.53 | R116: 509.59 | S116: 7.88 | T116: 41.64 | U116: 18.47 | V116: 58.7
B117: Итого за день | C117: =C116+C108 -> 735 | E117: =E116+E108 -> 38.85 | F117: 25.12 | G117: 93.18 | H117: 760.4 | I117: 0.71 | J117: 0.29 | K117: 87.37 | L117: 0 | M117: 5.15 | N117: 799.19 | O117: 991.4 | P117: 381.07 | Q117: 153.15 | R117: 540.18 | S117: 9.04 | T117: 41.65 | U117: 18.49 | V117: 59.23
A119: 7 день, 2 неделя
A120: № рецептуры | B120: Прием пищи, наименование блюда | C120: Масса | D120: Масса | E120: Пищевые вещества | H120: Энергетическая ценность | I120: Витамины | N120: Минеральные вещества
E121: Белки | F121: Жиры | G121: Углеводы | I121: B1 | J121: B2 | K121: A | L121: D | M121: C | N121: Na | O121: K | P121: Ca | Q121: Mg | R121: P | S121: Fe | T121: I | U121: Se | V121: F
C122: г | D122: г | E122: г | F122: г | G122: г | H122: ккал | I122: мг | J122: мг | K122: мкг рет.экв | L122: мкг | M122: мг | N122: мг | O122: мг | P122: мг | Q122: мг | R122: мг | S122: мг | T122: мкг | U122: мкг | V122: мкг
B123: Понедельник, 2 неделя
B124: Буфет | C124: 7-11 | D124: 11-18
A125: 54-21гн-2020 | B125: Какао с молоком | C125: 150 | D125: 150 | E125: 3.5 | F125: 2.6 | G125: 9.4 | H125: 75.3 | I125: 0.03 | J125: 0.12 | K125: 12.94 | L125: 0 | M125: 0.51 | N125: 37.46 | O125: 165.25 | P125: 125.76 | Q125: 25.74 | R125: 97.71 | S125: 0.82 | T125: 8.78 | U125: 1.72 | V125: 28.69
A126: Пром. | B126: Сушка простая | C126: 20 | D126: 20 | E126: 2.2 | F126: 0.3 | G126: 13.8 | H126: 66.1 | I126: 0.05 | J126: 0.01 | K126: 0 | L126: 0 | M126: 0 | N126: 121 | O126: 37 | P126: 6 | Q126: 9.2 | R126: 24.2 | S126: 0.58 | T126: 0 | U126: 0 | V126: 0
B127: Итого за буфет | C127: 170 | D127: 170 | E127: 5.7 | F127: 2.9 | G127: 23.2 | H127: 141.4 | I127: 0.08 | J127: 0.13 | K127: 12.94 | L127: 0 | M127: 0.51 | N127: 158.46 | O127: 202.25 | P127: 131.76 | Q127: 34.94 | R127: 121.91 | S127: 1.4 | T127: 8.78 | U127: 1.72 | V127: 28.69
B128: Горячий завтрак | C128: 7-11 | D128: 11-18
A129: 54-7з-2020 | B129: Салат из белокочанной капусты с растительным маслом | C129: 60 | D129: 60 | E129: 1.5 | F129: 6.1 | G129: 6.2 | H129: 85.8 | I129: 0.03 | J129: 0.04 | K129: 122.25 | L129: 0 | M129: 34.78 | N129: 88.69 | O129: 247.73 | P129: 40.39 | Q129: 15.18 | R129: 30.31 | S129: 0.55 | T129: 10.73 | U129: 0.26 | V129: 12.66
A130: 54-4г-2020 | B130: Каша гречневая рассыпчатая | C130: 150 | D130: 180 | E130: 8.2 | F130: 6.3 | G130: 35.9 | H130: 233.7 | I130: 0.21 | J130: 0.12 | K130: 19.19 | L130: 0.09 | M130: 0 | N130: 149.45 | O130: 219.36 | P130: 46.62 | Q130: 120.16 | R130: 180.99 | S130: 4.05 | T130: 22.28 | U130: 3.52 | V130: 16.06
A131: ном.рец №608 | B131: Котлета мясная Любительская, полуфабрикат в соусе | C131: 70/30 | D131: 70/30 | E131: 10.04 | F131: 12.79 | G131: 8.12 | H131: 187.9 | I131: 0 | J131: 0 | K131: 38.45 | L131: 0.01 | M131: 1.15 | N131: 3 | O131: 43 | P131: 45.75 | Q131: 35.13 | R131: 173.38 | S131: 1.6 | T131: 0 | U131: 0 | V131: 0
A132: 54-2гн-2020 | B132: Чай с сахаром | C132: 200 | D132: 200 | E132: 0.2 | F132: 0 | G132: 6.4 | H132: 26.8 | I132: 0 | J132: 0.01 | K132: 0.3 | L132: 0 | M132: 0.04 | N132: 0.68 | O132: 20.76 | P132: 66.08 | Q132: 3.83 | R132: 7.18 | S132: 0.73 | T132: 0 | U132: 0 | V132: 0
A133: Пром. | B133: Хлеб пшеничный | C133: 30 | D133: 30 | E133: 2.3 | F133: 0.2 | G133: 14.8 | H133: 70.3 | I133: 0.03 | J133: 0.01 | K133: 0 | L133: 0 | M133: 0 | N133: 149.7 | O133: 27.9 | P133: 6 | Q133: 4.2 | R133: 19.5 | S133: 0.33 | T133: 0.96 | U133: 1.8 | V133: 4.35
A134: Пром. | B134: Хлеб ржаной | C134: 20 | D134: 20 | E134: 1.3 | F134: 0.2 | G134: 6.7 | H134: 34.2 | I134: 0.04 | J134: 0.02 | K134: 0 | L134: 0 | M134: 0 | N134: 122 | O134: 49 | P134: 7 | Q134: 9.4 | R134: 31.6 | S134: 0.78 | T134: 0 | U134: 6.18 | V134: 0
B135: Итого за Завтрак | C135: 560 | D135: 590 | E135: =SUM(E129:E134) -> 23.54 | F135: 25.59 | G135: 78.12 | H135: 638.7 | I135: 0.31 | J135: 0.2 | K135: 180.19 | L135: 0.1 | M135: 35.97 | N135: 513.52 | O135: 607.75 | P135: 211.84 | Q135: 187.9 | R135: 442.96 | S135: 8.04 | T135: 33.97 | U135: 11.76 | V135: 33.07
B136: Итого за день | C136: =C135+C127 -> 730 | D136: 760 | E136: 29.24 | F136: 28.49 | G136: 101.32 | H136: 780.1 | I136: 0.39 | J136: 0.33 | K136: 193.13 | L136: 0.1 | M136: 36.48 | N136: 671.98 | O136: 810 | P136: 343.6 | Q136: 222.84 | R136: 564.87 | S136: 9.44 | T136: 42.75 | U136: 13.48 | V136: 61.76
A138: 8 день, 2 неделя
A139: № рецептуры | B139: Прием пищи, наименование блюда | C139: Масса | D139: Масса | E139: Пищевые вещества | H139: Энергетическая ценность | I139: Витамины | N139: Минеральные вещества
E140: Белки | F140: Жиры | G140: Углеводы | I140: B1 | J140: B2 | K140: A | L140: D | M140: C | N140: Na | O140: K | P140: Ca | Q140: Mg | R140: P | S140: Fe | T140: I | U140: Se | V140: F
C141: г | D141: г | E141: г | F141: г | G141: г | H141: ккал | I141: мг | J141: мг | K141: мкг рет.экв | L141: мкг | M141: мг | N141: мг | O141: мг | P141: мг | Q141: мг | R141: мг | S141: мг | T141: мкг | U141: мкг | V141: мкг
B142: Вторник, 2 неделя
B143: Буфет | C143: 7-11 | D143: 11-18
A144: 54-13к-2020 | B144: Каша вязкая молочная пшеничная | C144: 150 | D144: 150 | E144: 6.1 | F144: 6.9 | G144: 29 | H144: 202.7 | I144: 0.1 | J144: 0.13 | K144: 30.74 | L144: 0.1 | M144: 0.41 | N144: 256.57 | O144: 169.91 | P144: 113.68 | Q144: 29.4 | R144: 154.74 | S144: 1.64 | T144: 37.16 | U144: 24.8 | V144: 16.11
A145: 54-1гн-2020 | B145: Чай без сахара | C145: 150 | D145: 150 | E145: 0.1 | F145: 0 | G145: 0 | H145: 1.1 | I145: 0 | J145: 0.01 | K145: 0.23 | L145: 0 | M145: 0.03 | N145: 0.47 | O145: 15.44 | P145: 49.47 | Q145: 2.87 | R145: 5.38 | S145: 0.54 | T145: 0 | U145: 0 | V145: 0
B146: Итого за буфет | C146: 300 | D146: 300 | E146: 6.2 | F146: 6.9 | G146: 29 | H146: 203.8 | I146: 0.1 | J146: 0.14 | K146: 30.97 | L146: 0.1 | M146: 0.44 | N146: 257.04 | O146: 185.35 | P146: 163.15 | Q146: 32.27 | R146: 160.12 | S146: 2.18 | T146: 37.16 | U146: 24.8 | V146: 16.11
B147: Горячий завтрак | C147: 7-11 | D147: 11-18
A148: 54-13з-2020 | B148: Салат из свеклы отварной с растительным маслом | C148: 60 | D148: 60 | E148: 0.8 | F148: 2.7 | G148: 4.6 | H148: 45.6 | I148: 0.01 | J148: 0.02 | K148: 0.68 | L148: 0 | M148: 2.28 | N148: 78.77 | O148: 136.27 | P148: 19.21 | Q148: 10.95 | R148: 21.51 | S148: 0.7 | T148: 11.99 | U148: 0.35 | V148: 11.4
A149: 54-12м-2020 | B149: Плов с курицей | C149: 150/50 | D149: 170/50 | E149: 18.5 | F149: 7.4 | G149: 33.1 | H149: 273.2 | I149: 0.07 | J149: 0.06 | K149: 144.87 | L149: 0 | M149: 2.08 | N149: 272.9 | O149: 287.76 | P149: 72.64 | Q149: 78.85 | R149: 174.89 | S149: 1.53 | T149: 37.41 | U149: 19.63 | V149: 118.1
A150: 54-3гн-2020 | B150: Чай с лимоном и сахаром | C150: 207 | D150: 207 | E150: 0.2 | F150: 0.1 | G150: 6.6 | H150: 27.9 | I150: 0 | J150: 0.01 | K150: 0.38 | L150: 0 | M150: 1.16 | N150: 1.26 | O150: 30.23 | P150: 67 | Q150: 4.56 | R150: 8.52 | S150: 0.77 | T150: 0.01 | U150: 0.02 | V150: 0.7
A151: 54-10в-2020 | B151: Булочка ванильная | C151: 50 | D151: 50 | E151: 3.9 | F151: 3.37 | G151: 25.39 | H151: 147.4 | I151: 0.04 | J151: 0.02 | K151: 15.93 | L151: 0.12 | M151: 0 | N151: 200 | O151: 41 | P151: 14 | Q151: 5 | R151: 33 | S151: 0.5 | T151: 27.81 | U151: 2.6 | V151: 9.19
A152: Пром. | B152: Хлеб пшеничный | C152: 30 | D152: 30 | E152: 2.3 | F152: 0.2 | G152: 14.8 | H152: 70.3 | I152: 0.03 | J152: 0.01 | K152: 0 | L152: 0 | M152: 0 | N152: 149.7 | O152: 27.9 | P152: 6 | Q152: 4.2 | R152: 19.5 | S152: 0.33 | T152: 0.96 | U152: 1.8 | V152: 4.35
A153: Пром. | B153: Хлеб ржаной | C153: 20 | D153: 20 | E153: 1.3 | F153: 0.2 | G153: 6.7 | H153: 34.2 | I153: 0.04 | J153: 0.02 | K153: 0 | L153: 0 | M153: 0 | N153: 122 | O153: 49 | P153: 7 | Q153: 9.4 | R153: 31.6 | S153: 0.78 | T153: 0 | U153: 6.18 | V153: 0
B154: Итого за Завтрак | C154: 567 | D154: 587 | E154: =SUM(E148:E153) -> 27 | F154: =SUM(F148:F153) -> 13.97 | G154: 91.19 | H154: 598.6 | I154: 0.19 | J154: 0.14 | K154: 161.86 | L154: 0.12 | M154: 5.52 | N154: 824.63 | O154: 572.16 | P154: 185.85 | Q154: 112.96 | R154: 289.02 | S154: 4.61 | T154: 78.18 | U154: 30.58 | V154: 143.74
B155: Итого за день | C155: 867 | D155: 887 | E155: =E154+E146 -> 33.2 | F155: =F154+F146 -> 20.87 | G155: 120.19 | H155: 802.4 | I155: 0.29 | J155: 0.28 | K155: 192.83 | L155: 0.22 | M155: 5.96 | N155: 1081.67 | O155: 757.51 | P155: 349 | Q155: 145.23 | R155: 449.14 | S155: 6.79 | T155: 115.34 | U155: 55.38 | V155: 159.85
A157: 9 день, 2 неделя
A158: № рецептуры | B158: Прием пищи, наименование блюда | C158: Масса | D158: Масса | E158: Пищевые вещества | H158: Энергетическая ценность | I158: Витамины | N158: Минеральные вещества
E159: Белки | F159: Жиры | G159: Углеводы | I159: B1 | J159: B2 | K159: A | L159: D | M159: C | N159: Na | O159: K | P159: Ca | Q159: Mg | R159: P | S159: Fe | T159: I | U159: Se | V159: F
C160: г | D160: г | E160: г | F160: г | G160: г | H160: ккал | I160: мг | J160: мг | K160: мкг рет.экв | L160: мкг | M160: мг | N160: мг | O160: мг | P160: мг | Q160: мг | R160: мг | S160: мг | T160: мкг | U160: мкг | V160: мкг
B161: Среда, 2 неделя
B162: Буфет | C162: 7-11 | D162: 11-18
A163: 54-2гн-2020 | B163: Чай с сахаром | C163: 150 | D163: 150 | E163: 0.1 | F163: 0 | G163: 4.8 | H163: 20.1 | I163: 0 | J163: 0.01 | K163: 0.23 | L163: 0 | M163: 0.03 | N163: 0.51 | O163: 15.57 | P163: 49.56 | Q163: 2.87 | R163: 5.38 | S163: 0.55 | T163: 0 | U163: 0 | V163: 0
A164: Пром. | B164: Сушка простая | C164: 20 | D164: 20 | E164: 2.2 | F164: 0.3 | G164: 13.8 | H164: 66.1 | I164: 0.05 | J164: 0.01 | K164: 0 | L164: 0 | M164: 0 | N164: 121 | O164: 37 | P164: 6 | Q164: 9.2 | R164: 24.2 | S164: 0.58 | T164: 0 | U164: 0 | V164: 0
B165: Итого за буфет | C165: 170 | D165: 170 | E165: 2.3 | F165: 0.3 | G165: 18.6 | H165: 86.2 | I165: 0.05 | J165: 0.02 | K165: 0.23 | L165: 0 | M165: 0.03 | N165: 121.51 | O165: 52.57 | P165: 55.56 | Q165: 12.07 | R165: 29.58 | S165: 1.13 | T165: 0 | U165: 0 | V165: 0
B166: Горячий завтрак | C166: 7-11 | D166: 11-18
A167: 54-16з-2020 | B167: Винегрет с растительным маслом | C167: 60 | D167: 60 | E167: 0.7 | F167: 5.4 | G167: 4 | H167: 67.1 | I167: 0.02 | J167: 0.02 | K167: 72.89 | L167: 0 | M167: 2.26 | N167: 200.99 | O167: 127.85 | P167: 12.1 | Q167: 9.66 | R167: 21.4 | S167: 0.41 | T167: 7.86 | U167: 0.13 | V167: 11.85
A168: 54-11г-2020 | B168: Картофельное пюре | C168: 150 | D168: 200 | E168: 3.1 | F168: 5.3 | G168: 19.8 | H168: 139.4 | I168: 0.12 | J168: 0.11 | K168: 23.8 | L168: 0.09 | M168: 10.2 | N168: 161.78 | O168: 624.83 | P168: 39.49 | Q168: 28.23 | R168: 84.47 | S168: 1.03 | T168: 28.46 | U168: 0.78 | V168: 42.79
A169: 54-7р-2020 | B169: Рыба припущенная в молоко | C169: 100 | D169: 100 | E169: 13.09 | F169: 7.52 | G169: 2.89 | H169: 131.6 | I169: 0.08 | J169: 0.11 | K169: 9.02 | L169: 0.16 | M169: 1 | N169: 111 | O169: 347 | P169: 68 | Q169: 44 | R169: 202 | S169: 0.7 | T169: 133.48 | U169: 11.9 | V169: 572.6
A170: 54-21гн-2020 | B170: Какао с молоком | C170: 200 | D170: 200 | E170: 4.7 | F170: 3.5 | G170: 12.5 | H170: 100.4 | I170: 0.04 | J170: 0.16 | K170: 17.25 | L170: 0 | M170: 0.68 | N170: 49.95 | O170: 220.33 | P170: 167.68 | Q170: 34.32 | R170: 130.28 | S170: 1.09 | T170: 11.7 | U170: 2.29 | V170: 38.25
A171: Пром. | B171: Яблоко | C171: 100 | D171: 100 | E171: 0.6 | F171: 0.6 | G171: 14.7 | H171: 66.6 | I171: 0.04 | J171: 0.03 | K171: 7.5 | L171: 0 | M171: 15 | N171: 39 | O171: 417 | P171: 24 | Q171: 14 | R171: 17 | S171: 3.3 | T171: 3 | U171: 0.4 | V171: 12
A172: Пром. | B172: Хлеб пшеничный | C172: 30 | D172: 30 | E172: 2.3 | F172: 0.2 | G172: 14.8 | H172: 70.3 | I172: 0.03 | J172: 0.01 | K172: 0 | L172: 0 | M172: 0 | N172: 149.7 | O172: 27.9 | P172: 6 | Q172: 4.2 | R172: 19.5 | S172: 0.33 | T172: 0.96 | U172: 1.8 | V172: 4.35
A173: Пром. | B173: Хлеб ржаной | C173: 20 | D173: 20 | E173: 1.3 | F173: 0.2 | G173: 6.7 | H173: 34.2 | I173: 0.04 | J173: 0.02 | K173: 0 | L173: 0 | M173: 0 | N173: 122 | O173: 49 | P173: 7 | Q173: 9.4 | R173: 31.6 | S173: 0.78 | T173: 0 | U173: 6.18 | V173: 0
B174: Итого за Завтрак | C174: =SUM(C167:C173) -> 660 | D174: =SUM(D167:D173) -> 710 | E174: =SUM(E167:E173) -> 25.79 | F174: =SUM(F167:F173) -> 22.72 | G174: 75.39 | H174: 609.6 | I174: 0.37 | J174: 0.46 | K174: 130.46 | L174: 0.25 | M174: 29.14 | N174: 834.42 | O174: 1813.91 | P174: 324.27 | Q174: 143.81 | R174: 506.25 | S174: 7.64 | T174: 185.46 | U174: 23.48 | V174: 681.84
B175: Итого за день | C175: =C174+C165 -> 830 | D175: =D174+D165 -> 880 | E175: =E174+E165 -> 28.09 | F175: =F174+F165 -> 23.02 | G175: 93.99 | H175: 695.8 | I175: 0.42 | J175: 0.48 | K175: 130.69 | L175: 0.25 | M175: 29.17 | N175: 955.93 | O175: 1866.48 | P175: 379.83 | Q175: 155.88 | R175: 535.83 | S175: 8.77 | T175: 185.46 | U175: 23.48 | V175: 681.84
A177: 10 день, 2 неделя
A178: № рецептуры | B178: Прием пищи, наименование блюда | C178: Масса | D178: Масса | E178: Пищевые вещества | H178: Энергетическая ценность | I178: Витамины | N178: Минеральные вещества
E179: Белки | F179: Жиры | G179: Углеводы | I179: B1 | J179: B2 | K179: A | L179: D | M179: C | N179: Na | O179: K | P179: Ca | Q179: Mg | R179: P | S179: Fe | T179: I | U179: Se | V179: F
C180: г | D180: г | E180: г | F180: г | G180: г | H180: ккал | I180: мг | J180: мг | K180: мкг рет.экв | L180: мкг | M180: мг | N180: мг | O180: мг | P180: мг | Q180: мг | R180: мг | S180: мг | T180: мкг | U180: мкг | V180: мкг
B181: Четверг, 2 неделя
B182: Буфет | C182: 7-11 | D182: 11-18
A183: 54-6к-2020 | B183: Каша вязкая молочная пшенная | C183: 150 | D183: 150 | E183: 6.2 | F183: 7.6 | G183: 28.2 | H183: 206.2 | I183: 0.14 | J183: 0.11 | K183: 31.22 | L183: 0.1 | M183: 0.41 | N183: 254.01 | O183: 162.17 | P183: 107.34 | Q183: 36.72 | R183: 139.54 | S183: 0.99 | T183: 38.71 | U183: 2.33 | V183: 26.31
A184: 54-3гн-2020 | B184: Чай с лимоном и сахаром | C184: 155 | D184: 155 | E184: 0.2 | F184: 0 | G184: 5 | H184: 20.9 | I184: 0 | J184: 0.01 | K184: 0.29 | L184: 0 | M184: 0.87 | N184: 0.95 | O184: 22.67 | P184: 50.25 | Q184: 3.42 | R184: 6.39 | S184: 0.58 | T184: 0.01 | U184: 0.02 | V184: 0.53
B185: Итого за буфет | C185: 305 | D185: 305 | E185: 6.4 | F185: 7.6 | G185: 33.2 | H185: 227.1 | I185: 0.14 | J185: 0.12 | K185: 31.51 | L185: 0.1 | M185: 1.28 | N185: 254.96 | O185: 184.84 | P185: 157.59 | Q185: 40.14 | R185: 145.93 | S185: 1.57 | T185: 38.72 | U185: 2.35 | V185: 26.84
B186: Горячий завтрак | C186: 7-11 | D186: 11-18
A187: 54-11з-2020 | B187: Салат из моркови с яблоками с растительным маслом | C187: 60 | D187: 60 | E187: 0.5 | F187: 6.1 | G187: 4.3 | H187: 74.3 | I187: 0.03 | J187: 0.03 | K187: 732.9 | L187: 0 | M187: 3.63 | N187: 89.79 | O187: 123.26 | P187: 13.5 | Q187: 15.57 | R187: 22.38 | S187: 0.66 | T187: 10.19 | U187: 0.09 | V187: 21.57
A188: 54-6г-2020 | B188: Рис отварной | C188: 150 | D188: 180 | E188: 3.6 | F188: 4.8 | G188: 36.4 | H188: 203.5 | I188: 0.03 | J188: 0.02 | K188: 18.36 | L188: 0.09 | M188: 0 | N188: 152.8 | O188: 46.55 | P188: 106.65 | Q188: 23.59 | R188: 72.57 | S188: 0.49 | T188: 20.76 | U188: 7.24 | V188: 27.19
A189: 54-2м-2020 | B189: Гуляш из говядины | C189: 60/40 | D189: 60/40 | E189: 13.76 | F189: 13.91 | G189: 3.9 | H189: 195.8 | I189: 0.04 | J189: 0.12 | K189: 25.46 | L189: 0.07 | M189: 1 | N189: 122 | O189: 322 | P189: 55 | Q189: 23 | R189: 166 | S189: 2.5 | T189: 17.06 | U189: 0.4 | V189: 62.71
A190: 54-21гн-2020 | B190: Кофейный напиток с молоком | C190: 200 | D190: 200 | E190: 3.9 | F190: 2.9 | G190: 11.2 | H190: 86 | I190: 0.03 | J190: 0.13 | K190: 13.29 | L190: 0 | M190: 0.52 | N190: 38.55 | O190: 183.98 | P190: 148.32 | Q190: 30.67 | R190: 106.79 | S190: 1.06 | T190: 9 | U190: 1.76 | V190: 20
A191: Пром. | B191: Хлеб пшеничный | C191: 30 | D191: 30 | E191: 2.3 | F191: 0.2 | G191: 14.8 | H191: 70.3 | I191: 0.03 | J191: 0.01 | K191: 0 | L191: 0 | M191: 0 | N191: 149.7 | O191: 27.9 | P191: 6 | Q191: 4.2 | R191: 19.5 | S191: 0.33 | T191: 0.96 | U191: 1.8 | V191: 4.35
A192: Пром. | B192: Хлеб ржаной | C192: 20 | D192: 20 | E192: 1.3 | F192: 0.2 | G192: 6.7 | H192: 34.2 | I192: 0.04 | J192: 0.02 | K192: 0 | L192: 0 | M192: 0 | N192: 122 | O192: 49 | P192: 7 | Q192: 9.4 | R192: 31.6 | S192: 0.78 | T192: 0 | U192: 6.18 | V192: 0
B193: Итого за Завтрак | C193: 560 | D193: 590 | E193: =SUM(E187:E192) -> 25.36 | F193: 28.11 | G193: 77.3 | H193: 664.1 | I193: 0.2 | J193: 0.33 | K193: 790.01 | L193: 0.16 | M193: 5.15 | N193: 674.84 | O193: 752.69 | P193: 336.47 | Q193: 106.43 | R193: 418.84 | S193: 5.82 | T193: 57.97 | U193: 17.47 | V193: 135.82
B194: Итого за день | C194: =C193+C185 -> 865 | D194: =D193+D185 -> 895 | E194: =E193+E185 -> 31.76 | F194: 35.71 | G194: 110.5 | H194: 891.2 | I194: 0.34 | J194: 0.45 | K194: 821.52 | L194: 0.26 | M194: 6.43 | N194: 929.8 | O194: 937.53 | P194: 494.06 | Q194: 146.57 | R194: 564.77 | S194: 7.39 | T194: 96.69 | U194: 19.82 | V194: 162.66
A196: 11 день, 2 неделя
A197: № рецептуры | B197: Прием пищи, наименование блюда | C197: Масса | D197: Масса | E197: Пищевые вещества | H197: Энергетическая ценность | I197: Витамины | N197: Минеральные вещества
E198: Белки | F198: Жиры | G198: Углеводы | I198: B1 | J198: B2 | K198: A | L198: D | M198: C | N198: Na | O198: K | P198: Ca | Q198: Mg | R198: P | S198: Fe | T198: I | U198: Se | V198: F
C199: г | D199: г | E199: г | F199: г | G199: г | H199: ккал | I199: мг | J199: мг | K199: мкг рет.экв | L199: мкг | M199: мг | N199: мг | O199: мг | P199: мг | Q199: мг | R199: мг | S199: мг | T199: мкг | U199: мкг | V199: мкг
B200: Пятница, 2 неделя
B201: Буфет | C201: 7-11 | D201: 11-18
A202: 54-9к-2020 | B202: Каша вязкая молочная овсяная | C202: 150 | D202: 150 | E202: 6.4 | F202: 8.4 | G202: 25.7 | H202: 204.6 | I202: 0.15 | J202: 0.13 | K202: 30.15 | L202: 0.1 | M202: 0.39 | N202: 259.99 | O202: 205.54 | P202: 118.23 | Q202: 47.12 | R202: 175.03 | S202: 1.38 | T202: 38.44 | U202: 10.92 | V202: 46.71
A203: 54-2гн-2020 | B203: Чай с сахаром | C203: 150 | D203: 150 | E203: 0.1 | F203: 0 | G203: 4.8 | H203: 20.1 | I203: 0 | J203: 0.01 | K203: 0.23 | L203: 0 | M203: 0.03 | N203: 0.51 | O203: 15.57 | P203: 49.56 | Q203: 2.87 | R203: 5.38 | S203: 0.55 | T203: 0 | U203: 0 | V203: 0
B204: Итого за буфет | C204: 300 | D204: 300 | E204: 6.5 | F204: 8.4 | G204: 30.5 | H204: 224.7 | I204: 0.15 | J204: 0.14 | K204: 30.38 | L204: 0.1 | M204: 0.42 | N204: 260.5 | O204: 221.11 | P204: 167.79 | Q204: 49.99 | R204: 180.41 | S204: 1.93 | T204: 38.44 | U204: 10.92 | V204: 46.71
B205: Горячий завтрак | C205: 7-11 | D205: 11-18
A206: 54-13з-2020 | B206: Салат из свеклы отварной с растительным маслом | C206: 60 | D206: 60 | E206: 0.8 | F206: 2.7 | G206: 4.6 | H206: 45.6 | I206: 0.01 | J206: 0.02 | K206: 0.68 | L206: 0 | M206: 2.28 | N206: 78.77 | O206: 136.27 | P206: 19.21 | Q206: 10.95 | R206: 21.51 | S206: 0.7 | T206: 11.99 | U206: 0.35 | V206: 11.4
A207: 54-1г-2020 | B207: Макароны отварные | C207: 150 | D207: 180 | E207: 5.3 | F207: 4.9 | G207: 32.8 | H207: 196.8 | I207: 0.06 | J207: 0.02 | K207: 18.36 | L207: 0.09 | M207: 0 | N207: 149.04 | O207: 53.8 | P207: 105.83 | Q207: 7.19 | R207: 40.7 | S207: 0.73 | T207: 20.77 | U207: 0.06 | V207: 11.92
A208: ном.рец №174 | B208: Тефтели мясные из говядины, полуфабрикат в соусе | C208: 80/30 | D208: 80/30 | E208: 10.81 | F208: 10.4 | G208: 8.42 | H208: 168.9 | I208: 0 | J208: 0 | K208: 38.45 | L208: 0.01 | M208: 1.79 | N208: 3 | O208: 43 | P208: 45.75 | Q208: 35.13 | R208: 109 | S208: 1.6 | T208: 0 | U208: 0 | V208: 0
A209: 54-4гн-2020 | B209: Компот из кураги | C209: 200 | D209: 200 | E209: 0.98 | F209: 0.05 | G209: 15.64 | H209: 66.9 | I209: 0.01 | J209: 0.03 | K209: 69.96 | L209: 0 | M209: 0 | N209: 3 | O209: 285 | P209: 90 | Q209: 18 | R209: 25 | S209: 0.6 | T209: 0 | U209: 0 | V209: 0
A210: Пром. | B210: Хлеб ржаной | C210: 20 | D210: 20 | E210: 1.3 | F210: 0.2 | G210: 6.7 | H210: 34.2 | I210: 0.04 | J210: 0.02 | K210: 0 | L210: 0 | M210: 0 | N210: 122 | O210: 49 | P210: 7 | Q210: 9.4 | R210: 31.6 | S210: 0.78 | T210: 0 | U210: 6.18 | V210: 0
A211: Пром. | B211: Хлеб пшеничный | C211: 30 | D211: 30 | E211: 2.3 | F211: 0.2 | G211: 14.8 | H211: 70.3 | I211: 0.03 | J211: 0.01 | K211: 0 | L211: 0 | M211: 0 | N211: 149.7 | O211: 27.9 | P211: 6 | Q211: 4.2 | R211: 19.5 | S211: 0.33 | T211: 0.96 | U211: 1.8 | V211: 4.35
B212: Итого за Завтрак | C212: 570 | D212: 600 | E212: =SUM(E206:E211) -> 21.49 | F212: 18.45 | G212: 82.96 | H212: 582.7 | I212: 0.15 | J212: 0.1 | K212: 127.45 | L212: 0.1 | M212: 4.07 | N212: 505.51 | O212: 594.97 | P212: 273.79 | Q212: 84.87 | R212: 247.31 | S212: 4.74 | T212: 33.72 | U212: 8.39 | V212: 27.67
... 19 more rows
